Workbook

Sheet List of proteins identified
A1: List of identified proteins in oviduct fluid of under- (UF) and overfed (OF) ewes exposed (50) or not (0) to bisphenol S
G2: Predicted secretory pathways | O2: Mean quantitative value (Normalized Weighted Spectra) in each condition | T2: Quantitative value (Normalized Weighted Spectra) in underfed ewes | AB2: Quantitative value (Normalized Weighted Spectra) in overfed ewes
A3: Protein Name (1563) | B3: Species | C3: Accession Number | D3: Gene symbol | E3: Molecular Weight | G3: Proteins with a signal peptide | H3: Proteins unconventionnally secreted | I3: Identified in human and bovine oviduct extracellular vesicles | K3: Proteins quantified (at least 2 Normalized Weighted Spectra in one condition) | M3: Mean quantitative value total | O3: Mean quantitative value in UF0 | P3: Mean quantitative value in UF50 | Q3: Mean quantitative value in OF0 | R3: Mean quantitative value in OF50 | T3: UF0-1 | U3: UF0-2 | V3: UF0-3 | W3: UF0-4 | X3: UF50-1 | Y3: UF50-2 | Z3: UF50-3 | AA3: UF50-4 | AB3: OF0-1 | AC3: OF0-2 | AD3: OF0-3 | AE3: OF0-4 | AF3: OF0-5 | AG3: OF0-6 | AH3: OF50-1 | AI3: OF50-2 | AJ3: OF50-3 | AK3: OF50-4 | AL3: OF50-5
A4: alpha-1B-glycoprotein | B4: Ovis aries | C4: XP_027834752 | D4: A1BG | E4: 54 kDa | G4: x | K4: x | M4: =AVERAGE(O4:R4) -> 1.5 | O4: =AVERAGE(T4:W4) -> 1.68 | P4: =AVERAGE(X4:AA4) -> 0.61 | Q4: =AVERAGE(AB4:AG4) -> 1.65 | R4: =AVERAGE(AH4:AL4) -> 2.02 | T4: 4.20 | U4: 0.59 | V4: 0.64 | W4: 1.31 | X4: 0.33 | Y4: 0.00 | Z4: 1.78 | AA4: 0.34 | AB4: 2.71 | AC4: 0.00 | AD4: 2.23 | AE4: 1.69 | AF4: 1.84 | AG4: 1.40 | AH4: 0.33 | AI4: 2.28 | AJ4: 1.13 | AK4: 3.96 | AL4: 2.41
A5: PREDICTED: acetoacetyl-CoA synthetase | B5: Capra hircus | C5: XP_005691397 | D5: AACS | E5: 75 kDa | H5: x | M5: 1.0 | O5: 0.67 | P5: 0.76 | Q5: 0.86 | R5: 1.52 | T5: 0.65 | U5: 0.73 | V5: 0.81 | W5: 0.49 | X5: 1.15 | Y5: 0.16 | Z5: 1.25 | AA5: 0.49 | AB5: 1.06 | AC5: 0.48 | AD5: 0.64 | AE5: 1.36 | AF5: 0.74 | AG5: 0.87 | AH5: 2.60 | AI5: 0.98 | AJ5: 1.72 | AK5: 1.26 | AL5: 1.06
A6: AP2-associated protein kinase 1 isoform X1 | B6: Ovis aries | C6: XP_027822464 | D6: AAK1 | E6: 140 kDa | M6: 0.2 | O6: 0.00 | P6: 0.51 | Q6: 0.00 | R6: 0.24 | T6: 0.00 | U6: 0.00 | V6: 0.00 | W6: 0.00 | X6: 0.00 | Y6: 0.63 | Z6: 1.25 | AA6: 0.17 | AB6: 0.00 | AC6: 0.00 | AD6: 0.00 | AE6: 0.00 | AF6: 0.00 | AG6: 0.00 | AH6: 0.00 | AI6: 0.17 | AJ6: 0.00 | AK6: 0.00 | AL6: 1.06
A7: mth938 domain-containing protein isoform X1 | B7: Ovis aries | C7: XP_004019482 | D7: AAMDC | E7: 13 kDa | H7: x | K7: x | M7: 2.9 | O7: 2.74 | P7: 2.67 | Q7: 3.31 | R7: 2.82 | T7: 3.37 | U7: 1.75 | V7: 2.25 | W7: 3.59 | X7: 2.96 | Y7: 2.19 | Z7: 3.19 | AA7: 2.34 | AB7: 2.11 | AC7: 2.26 | AD7: 3.82 | AE7: 3.40 | AF7: 4.41 | AG7: 3.84 | AH7: 4.56 | AI7: 1.96 | AJ7: 3.40 | AK7: 1.80 | AL7: 2.40
A8: alanine--tRNA ligase, cytoplasmic | B8: Ovis aries | C8: XP_004014952 | D8: AARS1 | E8: 107 kDa | K8: x | M8: 5.9 | O8: 4.87 | P8: 4.71 | Q8: 5.67 | R8: 8.18 | T8: 2.76 | U8: 5.90 | V8: 4.85 | W8: 5.98 | X8: 6.04 | Y8: 5.76 | Z8: 4.53 | AA8: 2.52 | AB8: 5.07 | AC8: 4.10 | AD8: 7.97 | AE8: 5.20 | AF8: 3.20 | AG8: 8.47 | AH8: 9.22 | AI8: 5.26 | AJ8: 6.83 | AK8: 8.56 | AL8: 11.02
A9: ATP-binding cassette sub-family E member 1 | B9: Ovis aries | C9: KAG5198497 | D9: ABCG1 | E9: 70 kDa | K9: x | M9: 3.4 | O9: 3.68 | P9: 3.67 | Q9: 3.15 | R9: 3.17 | T9: 2.75 | U9: 4.82 | V9: 3.87 | W9: 3.26 | X9: 5.43 | Y9: 3.77 | Z9: 2.85 | AA9: 2.66 | AB9: 2.86 | AC9: 3.56 | AD9: 2.07 | AE9: 3.41 | AF9: 3.31 | AG9: 3.67 | AH9: 2.93 | AI9: 3.10 | AJ9: 2.65 | AK9: 3.24 | AL9: 3.90
A10: protein ABHD14B | B10: Ovis aries | C10: XP_004018465 | D10: ABHD14B | E10: 22 kDa | H10: x | I10: x | K10: x | M10: 15.5 | O10: 15.00 | P10: 15.30 | Q10: 16.35 | R10: 15.46 | T10: 15.01 | U10: 12.85 | V10: 14.19 | W10: 17.95 | X10: 13.82 | Y10: 15.97 | Z10: 12.44 | AA10: 18.96 | AB10: 14.78 | AC10: 17.15 | AD10: 17.48 | AE10: 17.39 | AF10: 16.56 | AG10: 14.71 | AH10: 17.23 | AI10: 16.31 | AJ10: 12.83 | AK10: 18.01 | AL10: 12.93
A11: costars family protein ABRACL | B11: Bos taurus | C11: NP_001160033 | D11: ABRACL | E11: 9 kDa | H11: x | K11: x | M11: 3.7 | O11: 3.60 | P11: 2.89 | Q11: 4.56 | R11: 3.68 | T11: 2.08 | U11: 2.92 | V11: 4.85 | W11: 4.57 | X11: 1.65 | Y11: 3.44 | Z11: 2.50 | AA11: 3.99 | AB11: 3.01 | AC11: 2.91 | AD11: 4.13 | AE11: 5.45 | AF11: 6.63 | AG11: 5.25 | AH11: 4.56 | AI11: 3.91 | AJ11: 3.39 | AK11: 3.24 | AL11: 3.31
A12: acetyl-CoA carboxylase 1 isoform X3 | B12: Ovis aries | C12: XP_027829751 | D12: ACACA | E12: 265 kDa | K12: x | M12: 29.7 | O12: 31.25 | P12: 26.07 | Q12: 27.20 | R12: 34.47 | T12: 30.74 | U12: 35.06 | V12: 35.53 | W12: 23.66 | X12: 29.44 | Y12: 25.04 | Z12: 25.78 | AA12: 24.00 | AB12: 28.95 | AC12: 27.28 | AD12: 28.11 | AE12: 36.96 | AF12: 21.07 | AG12: 20.81 | AH12: 37.84 | AI12: 28.64 | AJ12: 36.61 | AK12: 39.01 | AL12: 30.25
A13: PREDICTED: acetyl-CoA acetyltransferase, cytosolic | B13: Capra hircus | C13: XP_017908921 | D13: ACAT2 | E13: 41 kDa | K13: x | M13: 8.7 | O13: 11.51 | P13: 9.74 | Q13: 6.67 | R13: 6.86 | T13: 11.29 | U13: 14.31 | V13: 11.28 | W13: 9.14 | X13: 9.55 | Y13: 9.40 | Z13: 11.04 | AA13: 8.97 | AB13: 7.24 | AC13: 5.19 | AD13: 5.72 | AE13: 7.15 | AF13: 7.37 | AG13: 7.36 | AH13: 6.83 | AI13: 5.22 | AJ13: 6.79 | AK13: 6.12 | AL13: 9.34
A14: acyl-CoA-binding domain-containing protein 7 | B14: Ovis aries | C14: XP_027832460 | D14: ACBD7 | E14: 10 kDa | H14: x | M14: 0.8 | O14: 0.94 | P14: 0.89 | Q14: 0.74 | R14: 0.66 | T14: 0.00 | U14: 1.17 | V14: 1.93 | W14: 0.65 | X14: 0.99 | Y14: 1.57 | Z14: 0.36 | AA14: 0.66 | AB14: 0.30 | AC14: 0.00 | AD14: 0.95 | AE14: 1.02 | AF14: 1.10 | AG14: 1.05 | AH14: 0.65 | AI14: 0.65 | AJ14: 0.74 | AK14: 0.36 | AL14: 0.90
A15: angiotensin-converting enzyme isoform X1 | B15: Ovis aries | C15: XP_027830155 | D15: ACE | E15: 150 kDa | G15: x | I15: x | K15: x | M15: 2.1 | O15: 1.96 | P15: 2.42 | Q15: 2.41 | R15: 1.80 | T15: 2.08 | U15: 0.59 | V15: 3.20 | W15: 1.96 | X15: 1.64 | Y15: 2.50 | Z15: 3.56 | AA15: 1.99 | AB15: 1.82 | AC15: 2.26 | AD15: 4.76 | AE15: 2.72 | AF15: 2.57 | AG15: 0.36 | AH15: 3.56 | AI15: 1.30 | AJ15: 1.85 | AK15: 1.08 | AL15: 1.20
A16: ATP-citrate synthase | B16: Ovis aries | C16: NP_001033711 | D16: ACLY | E16: 121 kDa | H16: x | K16: x | M16: 40.4 | O16: 36.38 | P16: 38.87 | Q16: 37.59 | R16: 48.77 | T16: 40.46 | U16: 41.21 | V16: 32.54 | W16: 31.33 | X16: 51.00 | Y16: 39.13 | Z16: 43.70 | AA16: 21.64 | AB16: 36.47 | AC16: 29.14 | AD16: 47.68 | AE16: 28.96 | AF16: 34.95 | AG16: 48.32 | AH16: 45.85 | AI16: 39.79 | AJ16: 52.07 | AK16: 49.23 | AL16: 56.94
A17: cytoplasmic aconitate hydratase | B17: Ovis aries | C17: XP_014948746 | D17: ACO1 | E17: 98 kDa | K17: x | M17: 15.8 | O17: 17.33 | P17: 17.36 | Q17: 14.61 | R17: 14.04 | T17: 20.14 | U17: 17.05 | V17: 14.95 | W17: 17.16 | X17: 19.03 | Y17: 16.35 | Z17: 18.22 | AA17: 15.86 | AB17: 13.05 | AC17: 14.30 | AD17: 15.40 | AE17: 14.11 | AF17: 13.14 | AG17: 17.66 | AH17: 12.57 | AI17: 15.44 | AJ17: 11.05 | AK17: 11.80 | AL17: 19.32
A18: acyl-coenzyme A thioesterase 11 isoform X1 | B18: Ovis aries | C18: XP_027826366 | D18: ACOT11 | E18: 67 kDa | K18: x | M18: 2.3 | O18: 2.06 | P18: 2.00 | Q18: 2.58 | R18: 2.65 | T18: 2.22 | U18: 2.14 | V18: 1.93 | W18: 1.96 | X18: 1.97 | Y18: 1.88 | Z18: 2.02 | AA18: 2.11 | AB18: 2.42 | AC18: 2.16 | AD18: 2.43 | AE18: 2.39 | AF18: 3.19 | AG18: 2.92 | AH18: 2.93 | AI18: 2.17 | AJ18: 3.40 | AK18: 1.92 | AL18: 2.82
A19: low molecular weight phosphotyrosine protein phosphatase isoform X1 | B19: Ovis aries | C19: XP_004004006 | D19: ACP1 | E19: 18 kDa | H19: x | I19: x | K19: x | M19: 2.2 | O19: 2.28 | P19: 2.32 | Q19: 2.33 | R19: 1.73 | T19: 1.77 | U19: 1.13 | V19: 2.78 | W19: 3.43 | X19: 2.82 | Y19: 2.40 | Z19: 1.87 | AA19: 2.21 | AB19: 1.98 | AC19: 2.59 | AD19: 2.61 | AE19: 1.79 | AF19: 1.86 | AG19: 3.13 | AH19: 2.33 | AI19: 2.01 | AJ19: 1.95 | AK19: 0.93 | AL19: 1.43
A20: low molecular weight phosphotyrosine protein phosphatase isoform X2 | B20: Ovis aries | C20: XP_004004007 | D20: ACP1 | E20: 18 kDa | I20: x | M20: 0.8 | O20: 0.76 | P20: 0.83 | Q20: 0.84 | R20: 0.66 | T20: 0.67 | U20: 0.45 | V20: 0.63 | W20: 1.30 | X20: 0.63 | Y20: 1.25 | Z20: 0.57 | AA20: 0.88 | AB20: 0.88 | AC20: 0.86 | AD20: 0.59 | AE20: 1.10 | AF20: 0.88 | AG20: 0.70 | AH20: 0.72 | AI20: 0.80 | AJ20: 0.83 | AK20: 0.45 | AL20: 0.53
A21: Long-chain-fatty-acid--CoA ligase | B21: Ovis aries | C21: KAG5196031 | D21: ACSL1 | E21: 77 kDa | M21: 0.6 | O21: 0.54 | P21: 0.86 | Q21: 0.45 | R21: 0.54 | T21: 0.29 | U21: 0.88 | V21: 0.32 | W21: 0.65 | X21: 0.55 | Y21: 0.63 | Z21: 1.06 | AA21: 1.22 | AB21: 0.20 | AC21: 0.32 | AD21: 0.43 | AE21: 0.68 | AF21: 0.49 | AG21: 0.58 | AH21: 0.65 | AI21: 0.65 | AJ21: 0.63 | AK21: 0.36 | AL21: 0.40
A22: propionate--CoA ligase | B22: Ovis aries | C22: KAG5201819 | D22: ACSS3 | E22: 79 kDa | K22: x | M22: 7.8 | O22: 7.90 | P22: 8.66 | Q22: 6.77 | R22: 7.97 | T22: 13.02 | U22: 7.59 | V22: 8.05 | W22: 2.93 | X22: 7.89 | Y22: 7.21 | Z22: 9.24 | AA22: 10.30 | AB22: 6.62 | AC22: 7.44 | AD22: 4.14 | AE22: 6.83 | AF22: 4.41 | AG22: 11.16 | AH22: 9.42 | AI22: 4.93 | AJ22: 11.72 | AK22: 6.84 | AL22: 6.93
A23: PREDICTED: actin, cytoplasmic 1 | B23: Bison bison bison | C23: XP_010844072 | D23: ACTB | E23: 42 kDa | I23: x | K23: x | M23: 5.5 | O23: 6.28 | P23: 5.19 | Q23: 5.46 | R23: 5.16 | T23: 6.57 | U23: 6.67 | V23: 6.85 | W23: 5.04 | X23: 5.51 | Y23: 4.57 | Z23: 5.42 | AA23: 5.24 | AB23: 5.80 | AC23: 4.51 | AD23: 6.83 | AE23: 5.24 | AF23: 5.17 | AG23: 5.19 | AH23: 4.25 | AI23: 4.80 | AJ23: 4.43 | AK23: 6.63 | AL23: 5.69
A24: PREDICTED: beta-actin-like protein 2 isoform X1 | B24: Bos indicus | C24: XP_019838715 | D24: ACTBL2 | E24: 42 kDa | I24: x | K24: x | M24: 3.2 | O24: 3.47 | P24: 3.70 | Q24: 2.84 | R24: 2.98 | T24: 4.36 | U24: 3.57 | V24: 3.54 | W24: 2.40 | X24: 4.25 | Y24: 3.40 | Z24: 3.72 | AA24: 3.44 | AB24: 2.86 | AC24: 3.79 | AD24: 2.81 | AE24: 2.27 | AF24: 2.43 | AG24: 2.88 | AH24: 3.24 | AI24: 3.29 | AJ24: 3.50 | AK24: 2.58 | AL24: 2.30
A25: actin related protein 1A | B25: Homo sapiens | C25: BAG59809 | D25: ACTR1A | E25: 38 kDa | I25: x | M25: 1.7 | O25: 1.77 | P25: 1.68 | Q25: 1.66 | R25: 1.70 | T25: 1.60 | U25: 1.94 | V25: 1.82 | W25: 1.71 | X25: 1.82 | Y25: 1.84 | Z25: 1.59 | AA25: 1.48 | AB25: 1.81 | AC25: 1.59 | AD25: 1.72 | AE25: 1.82 | AF25: 1.35 | AG25: 1.65 | AH25: 1.73 | AI25: 1.48 | AJ25: 1.92 | AK25: 1.66 | AL25: 1.73
A26: aminoacylase-1 | B26: Ovis aries | C26: XP_004018460 | D26: ACY1 | E26: 46 kDa | K26: x | M26: 18.9 | O26: 19.35 | P26: 20.11 | Q26: 19.54 | R26: 16.57 | T26: 24.52 | U26: 19.99 | V26: 16.25 | W26: 16.65 | X26: 19.41 | Y26: 20.04 | Z26: 21.50 | AA26: 19.48 | AB26: 20.98 | AC26: 17.49 | AD26: 21.77 | AE26: 15.85 | AF26: 22.61 | AG26: 18.53 | AH26: 15.77 | AI26: 16.97 | AJ26: 17.59 | AK26: 17.61 | AL26: 14.90
A27: acylphosphatase | B27: Ovis aries | C27: KAG5211529 | D27: ACYP1 | E27: 23 kDa | I27: x | K27: x | M27: 1.7 | O27: 1.59 | P27: 1.59 | Q27: 2.55 | R27: 0.98 | T27: 0.00 | U27: 1.17 | V27: 2.89 | W27: 2.29 | X27: 0.99 | Y27: 1.25 | Z27: 2.13 | AA27: 2.00 | AB27: 2.42 | AC27: 2.26 | AD27: 2.22 | AE27: 3.07 | AF27: 2.21 | AG27: 3.15 | AH27: 3.26 | AI27: 0.33 | AJ27: 0.74 | AK27: 0.00 | AL27: 0.60
A28: acylphosphatase-1 isoform X1 | B28: Ovis aries | C28: XP_012037455 | D28: ACYP1 | E28: 17 kDa | I28: x | M28: 1.4 | O28: 1.26 | P28: 1.73 | Q28: 1.69 | R28: 0.77 | T28: 0.00 | U28: 1.17 | V28: 2.57 | W28: 1.31 | X28: 0.49 | Y28: 2.20 | Z28: 1.07 | AA28: 3.16 | AB28: 1.96 | AC28: 2.75 | AD28: 1.59 | AE28: 1.87 | AF28: 0.92 | AG28: 1.04 | AH28: 0.98 | AI28: 0.81 | AJ28: 0.76 | AK28: 0.72 | AL28: 0.61
A29: 1,2-dihydroxy-3-keto-5-methylthiopentene dioxygenase isoform X1 | B29: Ovis aries | C29: XP_027819845 | D29: ADI1 | E29: 22 kDa | M29: 0.4 | O29: 0.59 | P29: 0.17 | Q29: 0.67 | R29: 0.27 | T29: 0.43 | U29: 0.00 | V29: 1.62 | W29: 0.33 | X29: 0.00 | Y29: 0.00 | Z29: 0.00 | AA29: 0.67 | AB29: 0.00 | AC29: 1.30 | AD29: 0.95 | AE29: 1.02 | AF29: 0.37 | AG29: 0.36 | AH29: 0.00 | AI29: 0.65 | AJ29: 0.00 | AK29: 0.73 | AL29: 0.00
A30: adenosine kinase isoform X2 | B30: Ovis aries | C30: XP_004021534 | D30: ADK | E30: 39 kDa | H30: x | M30: 1.3 | O30: 1.48 | P30: 1.22 | Q30: 1.54 | R30: 0.97 | T30: 1.88 | U30: 2.19 | V30: 1.20 | W30: 0.65 | X30: 1.56 | Y30: 0.62 | Z30: 1.69 | AA30: 1.00 | AB30: 1.51 | AC30: 1.45 | AD30: 0.87 | AE30: 1.45 | AF30: 2.48 | AG30: 1.49 | AH30: 0.65 | AI30: 0.82 | AJ30: 1.33 | AK30: 1.17 | AL30: 0.90
A31: Adenylosuccinate lyase | B31: Ovis aries | C31: KAG5212736 | D31: ADSL | E31: 142 kDa | K31: x | M31: 10.2 | O31: 10.84 | P31: 10.33 | Q31: 9.92 | R31: 9.64 | T31: 7.53 | U31: 13.15 | V31: 11.25 | W31: 11.43 | X31: 12.50 | Y31: 11.58 | Z31: 8.89 | AA31: 8.34 | AB31: 7.83 | AC31: 9.06 | AD31: 9.52 | AE31: 9.88 | AF31: 10.66 | AG31: 12.56 | AH31: 8.47 | AI31: 8.83 | AJ31: 10.58 | AK31: 10.07 | AL31: 10.23
A32: Adenylosuccinate synthetase isozyme 2 (AMPSase 2) | B32: Ovis aries | C32: KAG5202241 | D32: ADSS2 | E32: 67 kDa | K32: x | M32: 10.7 | O32: 11.78 | P32: 11.59 | Q32: 9.47 | R32: 9.81 | T32: 11.92 | U32: 13.44 | V32: 10.97 | W32: 10.77 | X32: 9.38 | Y32: 8.30 | Z32: 14.39 | AA32: 14.30 | AB32: 10.25 | AC32: 8.42 | AD32: 7.97 | AE32: 10.05 | AF32: 7.73 | AG32: 12.43 | AH32: 9.91 | AI32: 10.42 | AJ32: 10.54 | AK32: 9.16 | AL32: 9.04
A33: glycogen debranching enzyme | B33: Bubalus bubalis | C33: XP_006049838.2 | D33: AGL | E33: 174 kDa | K33: x | M33: 12.4 | O33: 11.46 | P33: 11.99 | Q33: 10.41 | R33: 15.74 | T33: 7.49 | U33: 17.08 | V33: 9.19 | W33: 12.07 | X33: 15.46 | Y33: 12.23 | Z33: 15.28 | AA33: 5.01 | AB33: 10.68 | AC33: 6.97 | AD33: 14.91 | AE33: 11.25 | AF33: 9.74 | AG33: 8.93 | AH33: 14.62 | AI33: 14.46 | AJ33: 15.86 | AK33: 16.90 | AL33: 16.84
A34: protein argonaute-1 isoform 1 | B34: Bos taurus | C34: NP_001192828 | D34: AGO1 | E34: 97 kDa | M34: 0.0 | O34: 0.00 | P34: 0.01 | Q34: 0.01 | R34: 0.03 | T34: 0.01 | U34: 0.00 | V34: 0.00 | W34: 0.00 | X34: 0.02 | Y34: 0.01 | Z34: 0.02 | AA34: 0.01 | AB34: 0.02 | AC34: 0.01 | AD34: 0.00 | AE34: 0.00 | AF34: 0.01 | AG34: 0.01 | AH34: 0.01 | AI34: 0.04 | AJ34: 0.04 | AK34: 0.03 | AL34: 0.01
A35: anterior gradient protein 2 homolog | B35: Ovis aries | C35: XP_004007821 | D35: AGR2 | E35: 20 kDa | G35: x | M35: 0.2 | O35: 0.21 | P35: 0.15 | Q35: 0.16 | R35: 0.33 | T35: 0.16 | U35: 0.29 | V35: 0.19 | W35: 0.20 | X35: 0.13 | Y35: 0.06 | Z35: 0.28 | AA35: 0.13 | AB35: 0.18 | AC35: 0.19 | AD35: 0.19 | AE35: 0.20 | AF35: 0.07 | AG35: 0.14 | AH35: 0.45 | AI35: 0.39 | AJ35: 0.45 | AK35: 0.22 | AL35: 0.12
A36: Agrin | B36: Ovis aries | C36: KAG5202455 | D36: AGRN | E36: 278 kDa | G36: x | I36: x | K36: x | M36: 5.0 | O36: 5.56 | P36: 4.39 | Q36: 5.49 | R36: 4.58 | T36: 6.43 | U36: 5.30 | V36: 4.67 | W36: 5.82 | X36: 5.33 | Y36: 5.47 | Z36: 3.44 | AA36: 3.31 | AB36: 6.45 | AC36: 8.52 | AD36: 4.08 | AE36: 8.30 | AF36: 3.64 | AG36: 1.97 | AH36: 6.56 | AI36: 6.10 | AJ36: 3.00 | AK36: 4.18 | AL36: 3.07
A37: adenosylhomocysteinase | B37: Ovis aries | C37: XP_004014555 | D37: AHCY | E37: 48 kDa | I37: x | K37: x | M37: 29.9 | O37: 33.72 | P37: 28.96 | Q37: 27.61 | R37: 29.30 | T37: 34.48 | U37: 37.83 | V37: 32.87 | W37: 29.70 | X37: 31.42 | Y37: 28.36 | Z37: 28.98 | AA37: 27.09 | AB37: 28.96 | AC37: 25.25 | AD37: 27.16 | AE37: 27.93 | AF37: 24.66 | AG37: 31.67 | AH37: 26.50 | AI37: 29.20 | AJ37: 28.31 | AK37: 28.96 | AL37: 33.56
A38: neuroblast differentiation-associated protein AHNAK isoform X1 | B38: Ovis aries | C38: XP_027815717 | D38: AHNAK | E38: 635 kDa | I38: x | K38: x | M38: 9.6 | O38: 13.56 | P38: 11.50 | Q38: 7.42 | R38: 5.89 | T38: 16.95 | U38: 8.24 | V38: 13.65 | W38: 15.41 | X38: 8.97 | Y38: 16.63 | Z38: 7.07 | AA38: 13.33 | AB38: 8.74 | AC38: 13.04 | AD38: 6.01 | AE38: 5.59 | AF38: 6.86 | AG38: 4.29 | AH38: 6.99 | AI38: 8.43 | AJ38: 5.91 | AK38: 5.67 | AL38: 2.46
A39: activator of 90 kDa heat shock protein ATPase homolog 1 isoform X1 | B39: Ovis aries | C39: XP_027827883 | D39: AHSA1 | E39: 38 kDa | H39: x | K39: x | M39: 6.0 | O39: 7.24 | P39: 5.78 | Q39: 5.52 | R39: 5.59 | T39: 7.11 | U39: 9.19 | V39: 5.65 | W39: 7.02 | X39: 5.10 | Y39: 5.79 | Z39: 6.74 | AA39: 5.49 | AB39: 6.19 | AC39: 3.41 | AD39: 5.06 | AE39: 5.45 | AF39: 5.88 | AG39: 7.14 | AH39: 4.88 | AI39: 5.70 | AJ39: 6.77 | AK39: 4.14 | AL39: 6.47
A40: alpha-2-HS-glycoprotein precursor | B40: Ovis aries | C40: NP_001009802 | D40: AHSG | E40: 39 kDa | G40: x | I40: x | K40: x | M40: 7.6 | O40: 6.69 | P40: 6.77 | Q40: 9.31 | R40: 7.56 | T40: 3.72 | U40: 5.84 | V40: 8.69 | W40: 8.49 | X40: 5.26 | Y40: 5.63 | Z40: 8.88 | AA40: 7.32 | AB40: 11.75 | AC40: 6.47 | AD40: 9.18 | AE40: 11.24 | AF40: 7.73 | AG40: 9.47 | AH40: 4.88 | AI40: 8.79 | AJ40: 6.06 | AK40: 7.56 | AL40: 10.52
A41: Aminoacyl tRNA synthase complex-interacting multifunctional protein 2 (Multisynthase complex auxiliary component p38) (Protein JTV-1) | B41: Ovis aries | C41: KAG5195440 | D41: AIMP2 | E41: 35 kDa | H41: x | K41: x | M41: 7.0 | O41: 8.33 | P41: 5.32 | Q41: 7.73 | R41: 6.70 | T41: 13.76 | U41: 7.89 | V41: 8.41 | W41: 3.27 | X41: 4.93 | Y41: 5.32 | Z41: 6.04 | AA41: 4.98 | AB41: 7.24 | AC41: 8.09 | AD41: 9.53 | AE41: 5.77 | AF41: 6.62 | AG41: 9.10 | AH41: 6.50 | AI41: 5.90 | AJ41: 6.38 | AK41: 5.41 | AL41: 9.34
A42: AH receptor-interacting protein | B42: Bos taurus | C42: NP_898905 | D42: AIP | E42: 38 kDa | H42: x | M42: 0.5 | O42: 0.35 | P42: 0.77 | Q42: 0.57 | R42: 0.38 | T42: 0.56 | U42: 0.39 | V42: 0.00 | W42: 0.43 | X42: 0.88 | Y42: 0.94 | Z42: 0.48 | AA42: 0.78 | AB42: 0.80 | AC42: 0.54 | AD42: 0.53 | AE42: 0.46 | AF42: 0.61 | AG42: 0.47 | AH42: 0.54 | AI42: 0.22 | AJ42: 0.25 | AK42: 0.00 | AL42: 0.90
A43: adenylate kinase isoenzyme 1 | B43: Ovis aries | C43: NP_001155354 | D43: AK1 | E43: 22 kDa | H43: x | I43: x | K43: x | M43: 4.5 | O43: 5.08 | P43: 3.82 | Q43: 5.09 | R43: 3.87 | T43: 3.06 | U43: 5.84 | V43: 5.31 | W43: 6.09 | X43: 3.26 | Y43: 4.23 | Z43: 3.67 | AA43: 4.13 | AB43: 4.47 | AC43: 5.02 | AD43: 7.50 | AE43: 3.84 | AF43: 5.09 | AG43: 4.60 | AH43: 4.26 | AI43: 4.46 | AJ43: 4.59 | AK43: 3.30 | AL43: 2.75
A44: adenylate kinase 2, mitochondrial isoform X4 | B44: Ovis aries | C44: XP_004005056 | D44: AK2 | E44: 26 kDa | H44: x | M44: 0.3 | O44: 0.31 | P44: 0.33 | Q44: 0.29 | R44: 0.20 | T44: 0.00 | U44: 0.58 | V44: 0.33 | W44: 0.32 | X44: 0.98 | Y44: 0.00 | Z44: 0.00 | AA44: 0.34 | AB44: 0.00 | AC44: 0.00 | AD44: 0.00 | AE44: 0.34 | AF44: 0.00 | AG44: 1.41 | AH44: 0.33 | AI44: 0.66 | AJ44: 0.00 | AK44: 0.00 | AL44: 0.00
A45: adenylate kinase 7 isoform X1 | B45: Ovis aries | C45: XP_004018034 | D45: AK7 | E45: 83 kDa | I45: x | K45: x | M45: 9.0 | O45: 8.64 | P45: 10.53 | Q45: 7.33 | R45: 9.51 | T45: 7.11 | U45: 7.45 | V45: 7.91 | W45: 12.08 | X45: 12.67 | Y45: 8.31 | Z45: 11.54 | AA45: 9.61 | AB45: 6.33 | AC45: 5.50 | AD45: 8.27 | AE45: 6.81 | AF45: 4.97 | AG45: 12.09 | AH45: 10.39 | AI45: 11.36 | AJ45: 7.32 | AK45: 10.79 | AL45: 7.68
A46: A-kinase anchor protein 12 isoform X1 | B46: Ovis aries | C46: XP_027828359 | D46: AKAP12 | E46: 185 kDa | M46: 0.6 | O46: 1.17 | P46: 0.37 | Q46: 0.86 | R46: 0.10 | T46: 0.22 | U46: 0.73 | V46: 0.79 | W46: 2.94 | X46: 0.00 | Y46: 0.16 | Z46: 0.00 | AA46: 1.33 | AB46: 2.26 | AC46: 0.49 | AD46: 2.06 | AE46: 0.34 | AF46: 0.00 | AG46: 0.00 | AH46: 0.00 | AI46: 0.00 | AJ46: 0.00 | AK46: 0.36 | AL46: 0.15
A47: A-kinase anchor protein 13 | B47: Ovis aries | C47: KAG5197975 | D47: AKAP13 | E47: 297 kDa | K47: x | M47: 5.0 | O47: 6.80 | P47: 5.27 | Q47: 4.77 | R47: 3.00 | T47: 6.92 | U47: 4.20 | V47: 7.06 | W47: 9.03 | X47: 1.67 | Y47: 6.31 | Z47: 4.14 | AA47: 8.98 | AB47: 6.07 | AC47: 8.59 | AD47: 5.53 | AE47: 2.81 | AF47: 3.20 | AG47: 2.42 | AH47: 2.41 | AI47: 3.70 | AJ47: 1.82 | AK47: 3.42 | AL47: 3.64
A48: aldo-keto reductase family 1 member A1 | B48: Bos taurus | C48: NP_001069981 | D48: AKR1A1 | E48: 37 kDa | H48: x | K48: x | M48: 7.6 | O48: 8.26 | P48: 7.77 | Q48: 7.55 | R48: 6.91 | T48: 7.68 | U48: 8.82 | V48: 8.92 | W48: 7.61 | X48: 8.48 | Y48: 7.97 | Z48: 7.89 | AA48: 6.74 | AB48: 7.48 | AC48: 7.32 | AD48: 9.14 | AE48: 6.21 | AF48: 8.93 | AG48: 6.22 | AH48: 7.19 | AI48: 6.61 | AJ48: 7.92 | AK48: 6.03 | AL48: 6.79
A49: aflatoxin B1 aldehyde reductase member 4 | B49: Homo sapiens | C49: NP_001335350 | D49: AKR7L | E49: 37 kDa | H49: x | M49: 0.1 | O49: 0.12 | P49: 0.06 | Q49: 0.21 | R49: 0.08 | T49: 0.00 | U49: 0.15 | V49: 0.00 | W49: 0.33 | X49: 0.16 | Y49: 0.00 | Z49: 0.09 | AA49: 0.00 | AB49: 0.15 | AC49: 0.00 | AD49: 0.64 | AE49: 0.09 | AF49: 0.37 | AG49: 0.00 | AH49: 0.00 | AI49: 0.16 | AJ49: 0.00 | AK49: 0.09 | AL49: 0.15
A50: Aminolevulinate, delta-, dehydratase | B50: Bos taurus | C50: AAI12597 | D50: ALAD | E50: 36 kDa | H50: x | M50: =AVERAGE(O50:UF50) -> 1.5 | O50: 1.16 | P50: 1.33 | Q50: 1.67 | R50: 1.59 | T50: 1.43 | U50: 0.95 | V50: 1.22 | W50: 1.02 | X50: 1.16 | Y50: 1.08 | Z50: 1.31 | AA50: 1.76 | AB50: 1.54 | AC50: 1.61 | AD50: 1.70 | AE50: 1.77 | AF50: 1.54 | AG50: 1.84 | AH50: 1.55 | AI50: 1.60 | AJ50: 1.74 | AK50: 1.55 | AL50: 1.52
A51: albumin | B51: Ovis aries | C51: NP_001009376 | D51: ALB | E51: 69 kDa | G51: x | I51: x | K51: x | M51: 69.3 | O51: 68.18 | P51: 65.08 | Q51: 73.95 | R51: 70.04 | T51: 83.93 | U51: 58.21 | V51: 64.84 | W51: 65.75 | X51: 63.75 | Y51: 70.23 | Z51: 70.80 | AA51: 55.55 | AB51: 87.25 | AC51: 54.85 | AD51: 74.16 | AE51: 73.96 | AF51: 72.59 | AG51: 80.92 | AH51: 52.57 | AI51: 69.69 | AJ51: 58.24 | AK51: 82.67 | AL51: 87.02
A52: retinal dehydrogenase 1 | B52: Ovis aries | C52: NP_001009778 | D52: ALDH1A1 | E52: 55 kDa | H52: x | I52: x | K52: x | M52: 20.5 | O52: 20.93 | P52: 19.81 | Q52: 21.71 | R52: 19.48 | T52: 18.29 | U52: 23.12 | V52: 21.45 | W52: 20.86 | X52: 21.50 | Y52: 17.47 | Z52: 20.65 | AA52: 19.61 | AB52: 19.71 | AC52: 19.40 | AD52: 22.73 | AE52: 22.27 | AF52: 20.49 | AG52: 25.67 | AH52: 17.42 | AI52: 17.42 | AJ52: 19.42 | AK52: 20.43 | AL52: 22.70
A53: retinal dehydrogenase 2 | B53: Ovis aries | C53: XP_004010617 | D53: ALDH1A2 | E53: 57 kDa | K53: x | M53: 11.6 | O53: 12.76 | P53: 11.11 | Q53: 12.49 | R53: 9.87 | T53: 9.41 | U53: 15.19 | V53: 13.79 | W53: 12.66 | X53: 11.26 | Y53: 10.89 | Z53: 11.15 | AA53: 11.12 | AB53: 13.06 | AC53: 10.85 | AD53: 13.99 | AE53: 12.05 | AF53: 13.64 | AG53: 11.33 | AH53: 6.82 | AI53: 9.33 | AJ53: 9.40 | AK53: 11.23 | AL53: 12.54
A54: Aldehyde dehydrogenase family 16 member A1 | B54: Ovis aries | C54: KAG5201016 | D54: ALDH3A1 | E54: 85 kDa | K54: x | M54: 17.5 | O54: 16.25 | P54: 18.35 | Q54: 16.81 | R54: 18.46 | T54: 16.14 | U54: 15.78 | V54: 16.44 | W54: 16.65 | X54: 21.39 | Y54: 16.61 | Z54: 18.46 | AA54: 16.96 | AB54: 13.86 | AC54: 16.17 | AD54: 15.28 | AE54: 20.43 | AF54: 11.40 | AG54: 23.73 | AH54: 16.58 | AI54: 16.26 | AJ54: 24.05 | AK54: 14.35 | AL54: 21.07
A55: Aldehyde dehydrogenase 7 family, member A1 | B55: Bos taurus | C55: AAI05407 | D55: ALDH7A1 | E55: 55 kDa | K55: x | M55: 6.3 | O55: 7.18 | P55: 6.83 | Q55: 5.68 | R55: 5.50 | T55: 5.51 | U55: 10.43 | V55: 5.91 | W55: 6.89 | X55: 8.03 | Y55: 7.61 | Z55: 5.79 | AA55: 5.89 | AB55: 4.77 | AC55: 6.02 | AD55: 6.18 | AE55: 4.76 | AF55: 4.97 | AG55: 7.41 | AH55: 5.65 | AI55: 5.09 | AJ55: 5.25 | AK55: 5.47 | AL55: 6.05
A56: TPA: 4-trimethylaminobutyraldehyde dehydrogenase | B56: Bos taurus | C56: DAA32031 | D56: ALDH9A1 | E56: 54 kDa | I56: x | K56: x | M56: 11.5 | O56: 11.64 | P56: 11.94 | Q56: 12.30 | R56: 10.14 | T56: 11.99 | U56: 10.33 | V56: 11.01 | W56: 13.24 | X56: 12.51 | Y56: 11.29 | Z56: 13.38 | AA56: 10.57 | AB56: 13.36 | AC56: 11.50 | AD56: 10.73 | AE56: 11.04 | AF56: 12.95 | AG56: 14.23 | AH56: 9.93 | AI56: 11.05 | AJ56: 10.78 | AK56: 8.88 | AL56: 10.06
A57: fructose-bisphosphate aldolase A | B57: Bos taurus | C57: NP_001095385 | D57: ALDOA | E57: 39 kDa | I57: x | K57: x | M57: 19.4 | O57: 22.47 | P57: 19.45 | Q57: 19.18 | R57: 16.32 | T57: 20.85 | U57: 23.54 | V57: 21.83 | W57: 23.68 | X57: 19.85 | Y57: 17.83 | Z57: 20.91 | AA57: 19.23 | AB57: 18.70 | AC57: 18.32 | AD57: 16.53 | AE57: 16.78 | AF57: 23.29 | AG57: 21.46 | AH57: 16.94 | AI57: 14.86 | AJ57: 16.86 | AK57: 15.86 | AL57: 17.07
A58: N-acetylglucosamine-6-phosphate deacetylase | B58: Ovis aries | C58: XP_027817237 | D58: AMDHD2 | E58: 44 kDa | M58: 1.6 | O58: 1.83 | P58: 1.80 | Q58: 0.76 | R58: 1.91 | T58: 2.73 | U58: 2.19 | V58: 1.61 | W58: 0.82 | X58: 1.48 | Y58: 1.09 | Z58: 2.48 | AA58: 2.16 | AB58: 1.05 | AC58: 0.16 | AD58: 0.32 | AE58: 0.68 | AF58: 1.47 | AG58: 0.88 | AH58: 2.29 | AI58: 2.10 | AJ58: 2.62 | AK58: 0.90 | AL58: 1.64
A59: anaphase-promoting complex subunit 1 isoform X1 | B59: Ovis aries | C59: XP_027822925 | D59: ANAPC1 | E59: 216 kDa | H59: x | M59: 0.7 | O59: 0.66 | P59: 0.77 | Q59: 0.69 | R59: 0.69 | T59: 0.99 | U59: 0.44 | V59: 0.49 | W59: 0.73 | X59: 0.66 | Y59: 0.86 | Z59: 0.71 | AA59: 0.83 | AB59: 0.55 | AC59: 1.00 | AD59: 0.48 | AE59: 0.77 | AF59: 0.64 | AG59: 0.70 | AH59: 0.73 | AI59: 0.63 | AJ59: 0.54 | AK59: 0.75 | AL59: 0.80
A60: Ankyrin-2 | B60: Ovis aries | C60: KAG5207434 | D60: ANK2 | E60: 453 kDa | K60: x | M60: 2.4 | O60: 1.84 | P60: 3.91 | Q60: 2.15 | R60: 1.82 | T60: 1.70 | U60: 1.46 | V60: 2.15 | W60: 2.07 | X60: 1.32 | Y60: 10.53 | Z60: 1.78 | AA60: 2.00 | AB60: 1.21 | AC60: 6.04 | AD60: 2.99 | AE60: 0.34 | AF60: 1.96 | AG60: 0.35 | AH60: 0.22 | AI60: 5.10 | AJ60: 0.50 | AK60: 0.48 | AL60: 2.82
A61: rabankyrin-5 isoform X2 | B61: Ovis aries | C61: XP_004012625 | D61: ANKFY1 | E61: 129 kDa | K61: x | M61: 2.2 | O61: 1.45 | P61: 2.56 | Q61: 1.76 | R61: 2.97 | T61: 0.61 | U61: 1.31 | V61: 1.12 | W61: 2.78 | X61: 2.14 | Y61: 2.34 | Z61: 3.91 | AA61: 1.83 | AB61: 1.20 | AC61: 2.76 | AD61: 2.24 | AE61: 1.88 | AF61: 1.47 | AG61: 1.04 | AH61: 3.42 | AI61: 4.57 | AJ61: 3.19 | AK61: 2.16 | AL61: 1.50
A62: Annexin A1 | B62: Ovis aries | C62: KAG5213317 | D62: ANXA1 | E62: 76 kDa | I62: x | K62: x | M62: 68.1 | O62: 73.71 | P62: 63.93 | Q62: 72.31 | R62: 62.50 | T62: 76.23 | U62: 66.24 | V62: 77.26 | W62: 75.10 | X62: 59.60 | Y62: 63.97 | Z62: 61.18 | AA62: 70.96 | AB62: 93.02 | AC62: 81.70 | AD62: 74.50 | AE62: 51.07 | AF62: 75.68 | AG62: 57.87 | AH62: 53.49 | AI62: 66.66 | AJ62: 49.47 | AK62: 55.43 | AL62: 87.45
A63: annexin A3 | B63: Ovis aries | C63: XP_014952061 | D63: ANXA3 | E63: 36 kDa | H63: x | I63: x | K63: x | M63: 28.4 | O63: 34.98 | P63: 26.58 | Q63: 26.62 | R63: 25.32 | T63: 35.50 | U63: 31.51 | V63: 33.15 | W63: 39.74 | X63: 23.31 | Y63: 27.26 | Z63: 23.70 | AA63: 32.03 | AB63: 28.25 | AC63: 28.76 | AD63: 26.96 | AE63: 23.51 | AF63: 27.19 | AG63: 25.06 | AH63: 24.16 | AI63: 28.64 | AJ63: 21.09 | AK63: 19.08 | AL63: 33.64
A64: annexin A4 | B64: Ovis aries | C64: XP_004005861 | D64: ANXA4 | E64: 36 kDa | I64: x | K64: x | M64: 19.7 | O64: 22.54 | P64: 19.79 | Q64: 19.30 | R64: 17.37 | T64: 22.61 | U64: 20.49 | V64: 23.90 | W64: 23.16 | X64: 18.26 | Y64: 21.35 | Z64: 17.46 | AA64: 22.07 | AB64: 19.45 | AC64: 21.69 | AD64: 20.41 | AE64: 13.58 | AF64: 21.34 | AG64: 19.34 | AH64: 18.61 | AI64: 20.23 | AJ64: 17.78 | AK64: 14.15 | AL64: 16.05
A65: annexin A5 isoform X2 | B65: Ovis aries | C65: XP_012034784 | D65: ANXA5 | E65: 36 kDa | H65: x | I65: x | K65: x | M65: 18.8 | O65: 21.48 | P65: 19.10 | Q65: 18.97 | R65: 15.56 | T65: 23.20 | U65: 19.86 | V65: 22.45 | W65: 20.41 | X65: 15.30 | Y65: 19.82 | Z65: 19.36 | AA65: 21.94 | AB65: 21.42 | AC65: 22.03 | AD65: 18.96 | AE65: 11.94 | AF65: 19.91 | AG65: 19.54 | AH65: 15.95 | AI65: 16.52 | AJ65: 15.06 | AK65: 13.71 | AL65: 16.56
A66: annexin A6 isoform X1 | B66: Ovis aries | C66: XP_004009036 | D66: ANXA6 | E66: 76 kDa | I66: x | K66: x | M66: 5.6 | O66: 5.55 | P66: 4.55 | Q66: 5.60 | R66: 6.85 | T66: 5.92 | U66: 9.29 | V66: 3.07 | W66: 3.91 | X66: 3.13 | Y66: 3.76 | Z66: 5.16 | AA66: 6.16 | AB66: 3.47 | AC66: 4.80 | AD66: 9.71 | AE66: 4.94 | AF66: 3.86 | AG66: 6.83 | AH66: 5.69 | AI66: 7.58 | AJ66: 6.23 | AK66: 6.47 | AL66: 8.28
A67: annexin A7 isoform X3 | B67: Ovis aries | C67: XP_011960675 | D67: ANXA7 | E67: 50 kDa | I67: x | K67: x | M67: 4.2 | O67: 4.27 | P67: 4.54 | Q67: 4.05 | R67: 3.89 | T67: 6.09 | U67: 3.86 | V67: 3.37 | W67: 3.75 | X67: 3.54 | Y67: 5.20 | Z67: 5.47 | AA67: 3.94 | AB67: 4.56 | AC67: 4.24 | AD67: 5.52 | AE67: 2.81 | AF67: 4.05 | AG67: 3.15 | AH67: 3.42 | AI67: 3.87 | AJ67: 3.73 | AK67: 3.86 | AL67: 4.56
A68: annexin A8 | B68: Bos taurus | C68: NP_776666 | D68: ANXA8 | E68: 37 kDa | H68: x | I68: x | K68: x | M68: =AVERAGE(O68:R68) -> 14.8 | O68: =AVERAGE(T68:W68) -> 17.47 | P68: =AVERAGE(X68:AA68) -> 15.00 | Q68: =AVERAGE(AB68:AG68) -> 15.03 | R68: =AVERAGE(AH68:AL68) -> 11.72 | T68: 16.12 | U68: 16.98 | V68: 18.76 | W68: 18.00 | X68: 14.51 | Y68: 16.44 | Z68: 12.28 | AA68: 16.76 | AB68: 16.12 | AC68: 16.04 | AD68: 15.86 | AE68: 11.25 | AF68: 16.82 | AG68: 14.07 | AH68: 11.35 | AI68: 10.97 | AJ68: 11.14 | AK68: 10.71 | AL68: 14.41
A69: aldehyde oxidase | B69: Ovis aries | C69: KAG5213956 | D69: AOX1 | E69: 286 kDa | K69: x | M69: 7.3 | O69: 5.48 | P69: 9.77 | Q69: 5.66 | R69: 8.27 | T69: 6.35 | U69: 5.54 | V69: 6.76 | W69: 3.27 | X69: 15.13 | Y69: 8.48 | Z69: 12.80 | AA69: 2.68 | AB69: 1.50 | AC69: 7.10 | AD69: 6.67 | AE69: 2.39 | AF69: 11.78 | AG69: 4.53 | AH69: 6.50 | AI69: 5.54 | AJ69: 8.32 | AK69: 14.36 | AL69: 6.63
A70: AP-1 complex subunit beta-1 isoform X5 | B70: Ovis aries | C70: XP_027812525 | D70: AP1B1 | E70: 104 kDa | K70: x | M70: 4.4 | O70: 4.06 | P70: 4.95 | Q70: 3.71 | R70: 4.68 | T70: 5.00 | U70: 4.01 | V70: 3.07 | W70: 4.16 | X70: 5.60 | Y70: 4.37 | Z70: 5.77 | AA70: 4.07 | AB70: 4.90 | AC70: 3.89 | AD70: 3.89 | AE70: 2.90 | AF70: 2.95 | AG70: 3.75 | AH70: 4.39 | AI70: 4.15 | AJ70: 4.06 | AK70: 3.78 | AL70: 6.99
A71: AP-2 complex subunit alpha-1 | B71: Bos taurus | C71: NP_001178369 | D71: AP2A1 | E71: 108 kDa | M71: 1.1 | O71: 1.13 | P71: 0.89 | Q71: 1.11 | R71: 1.33 | T71: 1.28 | U71: 1.21 | V71: 1.07 | W71: 0.95 | X71: 1.24 | Y71: 0.70 | Z71: 0.94 | AA71: 0.68 | AB71: 1.06 | AC71: 1.27 | AD71: 1.60 | AE71: 0.88 | AF71: 0.93 | AG71: 0.93 | AH71: 1.13 | AI71: 1.24 | AJ71: 1.30 | AK71: 1.43 | AL71: 1.55
A72: AP-2 complex subunit alpha-2 isoform X3 | B72: Bos taurus | C72: XP_024842893 | D72: AP2A2 | E72: 103 kDa | M72: 1.4 | O72: 1.15 | P72: 1.53 | Q72: 0.97 | R72: 1.90 | T72: 1.08 | U72: 1.82 | V72: 0.65 | W72: 1.06 | X72: 1.68 | Y72: 1.27 | Z72: 1.95 | AA72: 1.24 | AB72: 1.21 | AC72: 0.94 | AD72: 1.09 | AE72: 0.91 | AF72: 0.35 | AG72: 1.31 | AH72: 1.38 | AI72: 2.21 | AJ72: 2.16 | AK72: 1.40 | AL72: 2.35
A73: AP-2 complex subunit beta isoform X1 | B73: Odocoileus virginianus texanus | C73: XP_020757976 | D73: AP2B1 | E73: 106 kDa | I73: x | K73: x | M73: 5.2 | O73: 4.67 | P73: 5.13 | Q73: 4.21 | R73: 6.82 | T73: 5.86 | U73: 4.31 | V73: 4.35 | W73: 4.16 | X73: 6.75 | Y73: 4.07 | Z73: 6.14 | AA73: 3.58 | AB73: 3.54 | AC73: 3.57 | AD73: 4.70 | AE73: 4.26 | AF73: 3.50 | AG73: 5.69 | AH73: 6.19 | AI73: 6.59 | AJ73: 7.07 | AK73: 6.82 | AL73: 7.45
A74: Golgin subfamily A member 3 | B74: Ovis aries | C74: KAG5198599 | D74: AP3B1 | E74: 163 kDa | K74: x | M74: 3.7 | O74: 3.17 | P74: 4.94 | Q74: 1.92 | R74: 4.73 | T74: 3.72 | U74: 4.09 | V74: 2.25 | W74: 2.61 | X74: 3.62 | Y74: 5.63 | Z74: 8.17 | AA74: 2.33 | AB74: 2.11 | AC74: 1.94 | AD74: 3.16 | AE74: 1.02 | AF74: 2.58 | AG74: 0.70 | AH74: 7.45 | AI74: 1.30 | AJ74: 4.52 | AK74: 2.89 | AL74: 7.50
A75: AP-3 complex subunit delta-1 | B75: Ovis aries | C75: XP_027825737 | D75: AP3D1 | E75: 136 kDa | K75: x | M75: 4.0 | O75: 4.09 | P75: 4.82 | Q75: 3.82 | R75: 3.15 | T75: 5.71 | U75: 3.70 | V75: 2.69 | W75: 4.24 | X75: 3.95 | Y75: 5.95 | Z75: 5.82 | AA75: 3.55 | AB75: 3.72 | AC75: 3.67 | AD75: 3.40 | AE75: 3.07 | AF75: 4.54 | AG75: 4.55 | AH75: 2.06 | AI75: 4.14 | AJ75: 3.16 | AK75: 2.28 | AL75: 4.11
A76: AP-3 complex subunit sigma-2 | B76: Bos taurus | C76: NP_001068844 | D76: AP3S2 | E76: 22 kDa | H76: x | M76: 0.2 | O76: 0.19 | P76: 0.21 | Q76: 0.25 | R76: 0.17 | T76: 0.18 | U76: 0.04 | V76: 0.32 | W76: 0.23 | X76: 0.14 | Y76: 0.27 | Z76: 0.25 | AA76: 0.19 | AB76: 0.21 | AC76: 0.32 | AD76: 0.14 | AE76: 0.34 | AF76: 0.16 | AG76: 0.30 | AH76: 0.19 | AI76: 0.28 | AJ76: 0.05 | AK76: 0.15 | AL76: 0.17
A77: acylamino-acid-releasing enzyme isoform X1 | B77: Ovis aries | C77: XP_004018506 | D77: APEH | E77: 81 kDa | K77: x | M77: 6.0 | O77: 5.69 | P77: 5.79 | Q77: 5.50 | R77: 6.87 | T77: 5.16 | U77: 5.07 | V77: 5.59 | W77: 6.96 | X77: 5.70 | Y77: 6.37 | Z77: 6.75 | AA77: 4.33 | AB77: 4.53 | AC77: 5.19 | AD77: 6.04 | AE77: 4.09 | AF77: 5.27 | AG77: 7.92 | AH77: 5.53 | AI77: 7.92 | AJ77: 6.01 | AK77: 5.75 | AL77: 9.14
A78: DNA-(apurinic or apyrimidinic site) endonuclease | B78: Ovis aries | C78: XP_004010439 | D78: APEX1 | E78: 36 kDa | H78: x | K78: x | M78: 14.4 | O78: 15.35 | P78: 13.62 | Q78: 14.52 | R78: 14.03 | T78: 15.45 | U78: 16.09 | V78: 13.23 | W78: 16.64 | X78: 13.82 | Y78: 13.78 | Z78: 14.21 | AA78: 12.65 | AB78: 14.47 | AC78: 15.21 | AD78: 13.69 | AE78: 13.63 | AF78: 14.73 | AG78: 15.38 | AH78: 11.07 | AI78: 13.36 | AJ78: 15.88 | AK78: 13.28 | AL78: 16.55
A79: Methylthioribulose-1-phosphate dehydratase | B79: Ovis aries | C79: KAG5199978 | D79: APIP | E79: 27 kDa | H79: x | K79: x | M79: 1.4 | O79: 1.29 | P79: 1.56 | Q79: 0.57 | R79: 2.00 | T79: 1.69 | U79: 0.88 | V79: 1.31 | W79: 1.30 | X79: 1.64 | Y79: 2.19 | Z79: 1.42 | AA79: 1.00 | AB79: 0.30 | AC79: 0.33 | AD79: 0.96 | AE79: 0.00 | AF79: 1.10 | AG79: 0.70 | AH79: 1.63 | AI79: 2.94 | AJ79: 3.40 | AK79: 1.43 | AL79: 0.60
A80: apolipoprotein A-I isoform X1 | B80: Ovis aries | C80: XP_011950887 | D80: APOA1 | E80: 30 kDa | G80: x | I80: x | K80: x | M80: 12.2 | O80: 14.51 | P80: 9.80 | Q80: 12.54 | R80: 11.76 | T80: 15.80 | U80: 10.51 | V80: 19.17 | W80: 12.56 | X80: 5.93 | Y80: 12.67 | Z80: 9.96 | AA80: 10.64 | AB80: 14.77 | AC80: 9.88 | AD80: 11.91 | AE80: 13.28 | AF80: 13.98 | AG80: 11.41 | AH80: 8.62 | AI80: 16.93 | AJ80: 8.35 | AK80: 12.42 | AL80: 12.48
A81: apolipoprotein A-IV | B81: Ovis aries | C81: XP_004016096 | D81: APOA4 | E81: 43 kDa | G81: x | M81: 0.6 | O81: 0.08 | P81: 1.00 | Q81: 0.65 | R81: 0.53 | T81: 0.00 | U81: 0.00 | V81: 0.00 | W81: 0.33 | X81: 0.00 | Y81: 0.94 | Z81: 0.71 | AA81: 2.33 | AB81: 1.80 | AC81: 0.00 | AD81: 0.32 | AE81: 0.68 | AF81: 1.10 | AG81: 0.00 | AH81: 0.66 | AI81: 0.98 | AJ81: 0.00 | AK81: 0.72 | AL81: 0.30
A82: DCC-interacting protein 13-alpha | B82: Bos taurus | C82: NP_001092473 | D82: APPL1 | E82: 80 kDa | M82: 0.8 | O82: 0.60 | P82: 0.61 | Q82: 0.91 | R82: 0.90 | T82: 0.42 | U82: 0.58 | V82: 0.58 | W82: 0.82 | X82: 0.41 | Y82: 0.56 | Z82: 0.94 | AA82: 0.51 | AB82: 0.84 | AC82: 0.81 | AD82: 1.05 | AE82: 0.60 | AF82: 0.83 | AG82: 1.32 | AH82: 1.03 | AI82: 0.91 | AJ82: 0.67 | AK82: 0.83 | AL82: 1.05
A83: DCC-interacting protein 13-beta isoform X1 | B83: Ovis aries | C83: XP_027823484 | D83: APPL2 | E83: 74 kDa | M83: 0.6 | O83: 0.10 | P83: 0.29 | Q83: 1.12 | R83: 0.92 | T83: 0.27 | U83: 0.10 | V83: 0.00 | W83: 0.04 | X83: 0.08 | Y83: 0.10 | Z83: 0.92 | AA83: 0.04 | AB83: 0.71 | AC83: 1.46 | AD83: 0.58 | AE83: 0.47 | AF83: 1.93 | AG83: 1.54 | AH83: 0.66 | AI83: 1.51 | AJ83: 0.27 | AK83: 0.89 | AL83: 1.26
A84: adenine phosphoribosyltransferase | B84: Ovis aries | C84: XP_014955647 | D84: APRT | E84: 20 kDa | H84: x | K84: x | M84: 7.3 | O84: 8.10 | P84: 8.10 | Q84: 6.79 | R84: 6.37 | T84: 9.62 | U84: 5.36 | V84: 8.34 | W84: 9.08 | X84: 6.58 | Y84: 10.49 | Z84: 6.75 | AA84: 8.59 | AB84: 7.14 | AC84: 9.29 | AD84: 5.73 | AE84: 5.50 | AF84: 7.47 | AG84: 5.59 | AH84: 8.34 | AI84: 6.31 | AJ84: 6.68 | AK84: 5.87 | AL84: 4.64
A85: arf-GAP with Rho-GAP domain, ANK repeat and PH domain-containing protein 1 isoform X1 | B85: Ovis aries | C85: XP_027835295 | D85: ARAP1 | E85: 163 kDa | M85: 0.1 | O85: 0.10 | P85: 0.12 | Q85: 0.06 | R85: 0.05 | T85: 0.14 | U85: 0.00 | V85: 0.11 | W85: 0.15 | X85: 0.00 | Y85: 0.18 | Z85: 0.17 | AA85: 0.15 | AB85: 0.10 | AC85: 0.00 | AD85: 0.04 | AE85: 0.16 | AF85: 0.00 | AG85: 0.09 | AH85: 0.00 | AI85: 0.04 | AJ85: 0.05 | AK85: 0.00 | AL85: 0.17
A86: coatomer subunit delta | B86: Ovis aries | C86: XP_004016127 | D86: ARCN1 | E86: 57 kDa | K86: x | M86: 1.7 | O86: 2.12 | P86: 1.43 | Q86: 1.78 | R86: 1.37 | T86: 2.23 | U86: 2.19 | V86: 2.10 | W86: 1.96 | X86: 2.14 | Y86: 0.63 | Z86: 1.84 | AA86: 1.11 | AB86: 0.55 | AC86: 0.54 | AD86: 1.75 | AE86: 2.50 | AF86: 3.25 | AG86: 2.10 | AH86: 2.22 | AI86: 1.03 | AJ86: 1.25 | AK86: 1.32 | AL86: 1.01
A87: brefeldin A-inhibited guanine nucleotide-exchange protein 1 isoform X1 | B87: Ovis aries | C87: XP_004011771 | D87: ARFGEF1 | E87: 209 kDa | K87: x | M87: 12.9 | O87: 14.80 | P87: 13.40 | Q87: 11.05 | R87: 12.37 | T87: 13.67 | U87: 16.58 | V87: 13.85 | W87: 15.10 | X87: 14.23 | Y87: 17.26 | Z87: 10.74 | AA87: 11.38 | AB87: 9.95 | AC87: 15.67 | AD87: 9.75 | AE87: 10.98 | AF87: 10.97 | AG87: 9.00 | AH87: 15.19 | AI87: 8.86 | AJ87: 9.78 | AK87: 13.49 | AL87: 14.52
A88: PREDICTED: brefeldin A-inhibited guanine nucleotide-exchange protein 2 | B88: Bos indicus | C88: XP_019828310 | D88: ARFGEF2 | E88: 197 kDa | K88: x | M88: 2.0 | O88: 2.35 | P88: 1.97 | Q88: 1.47 | R88: 2.41 | T88: 2.07 | U88: 3.23 | V88: 1.40 | W88: 2.70 | X88: 2.38 | Y88: 2.54 | Z88: 1.87 | AA88: 1.08 | AB88: 1.20 | AC88: 1.46 | AD88: 2.13 | AE88: 1.79 | AF88: 0.92 | AG88: 1.30 | AH88: 2.50 | AI88: 1.38 | AJ88: 2.91 | AK88: 2.69 | AL88: 2.57
A89: brefeldin A-inhibited guanine nucleotide-exchange protein 3 isoform X1 | B89: Ovis aries | C89: XP_027828296 | D89: ARFGEF3 | E89: 241 kDa | K89: x | M89: 8.6 | O89: 7.15 | P89: 8.88 | Q89: 8.50 | R89: 10.01 | T89: 8.57 | U89: 6.42 | V89: 5.95 | W89: 7.67 | X89: 6.74 | Y89: 10.34 | Z89: 9.42 | AA89: 9.03 | AB89: 7.68 | AC89: 9.06 | AD89: 9.37 | AE89: 9.37 | AF89: 10.30 | AG89: 5.23 | AH89: 9.76 | AI89: 10.08 | AJ89: 11.33 | AK89: 12.22 | AL89: 6.63
A90: arfaptin-1 isoform X3 | B90: Ovis aries | C90: XP_004017239 | D90: ARFIP1 | E90: 42 kDa | H90: x | K90: x | M90: 2.8 | O90: 3.02 | P90: 2.96 | Q90: 2.36 | R90: 2.72 | T90: 3.10 | U90: 3.65 | V90: 3.06 | W90: 2.29 | X90: 2.96 | Y90: 2.51 | Z90: 3.20 | AA90: 3.15 | AB90: 1.96 | AC90: 2.60 | AD90: 2.38 | AE90: 1.87 | AF90: 2.76 | AG90: 2.61 | AH90: 2.76 | AI90: 3.58 | AJ90: 2.09 | AK90: 2.16 | AL90: 3.01
A91: Rho GTPase-activating protein 1 | B91: Ovis aries | C91: KAG5200026 | D91: ARHGAP1 | E91: 50 kDa | K91: x | M91: 1.7 | O91: 2.58 | P91: 1.31 | Q91: 1.11 | R91: 1.92 | T91: 2.51 | U91: 2.62 | V91: 1.93 | W91: 3.26 | X91: 2.30 | Y91: 1.56 | Z91: 0.71 | AA91: 0.67 | AB91: 1.21 | AC91: 1.61 | AD91: 0.95 | AE91: 0.00 | AF91: 1.84 | AG91: 1.05 | AH91: 0.65 | AI91: 1.96 | AJ91: 2.64 | AK91: 2.87 | AL91: 1.51
A92: PREDICTED: LOW QUALITY PROTEIN: rho GTPase-activating protein 17 | B92: Bison bison bison | C92: XP_010835726 | D92: ARHGAP17 | E92: 84 kDa | M92: 0.6 | O92: 0.39 | P92: 0.99 | Q92: 0.05 | R92: 0.96 | T92: 0.00 | U92: 0.59 | V92: 0.31 | W92: 0.65 | X92: 0.98 | Y92: 1.57 | Z92: 1.43 | AA92: 0.00 | AB92: 0.00 | AC92: 0.00 | AD92: 0.32 | AE92: 0.00 | AF92: 0.00 | AG92: 0.00 | AH92: 0.65 | AI92: 1.96 | AJ92: 0.37 | AK92: 0.00 | AL92: 1.81
A93: rho GTPase-activating protein 18 isoform X1 | B93: Ovis aries | C93: XP_004011359 | D93: ARHGAP18 | E93: 75 kDa | K93: x | M93: 7.3 | O93: 7.11 | P93: 7.96 | Q93: 6.69 | R93: 7.29 | T93: 7.96 | U93: 5.26 | V93: 6.42 | W93: 8.81 | X93: 9.21 | Y93: 7.83 | Z93: 7.83 | AA93: 6.98 | AB93: 5.12 | AC93: 6.80 | AD93: 5.08 | AE93: 7.83 | AF93: 6.26 | AG93: 9.08 | AH93: 7.80 | AI93: 6.52 | AJ93: 6.02 | AK93: 6.48 | AL93: 9.62
A94: PREDICTED: rho GTPase-activating protein 27 isoform X1 | B94: Capra hircus | C94: XP_017920758 | D94: ARHGAP27 | E94: 96 kDa | M94: 0.4 | O94: 0.23 | P94: 0.70 | Q94: 0.16 | R94: 0.49 | T94: 0.00 | U94: 0.44 | V94: 0.16 | W94: 0.33 | X94: 0.17 | Y94: 1.10 | Z94: 0.88 | AA94: 0.67 | AB94: 0.15 | AC94: 0.00 | AD94: 0.31 | AE94: 0.34 | AF94: 0.18 | AG94: 0.00 | AH94: 0.81 | AI94: 0.66 | AJ94: 0.19 | AK94: 0.18 | AL94: 0.60
A95: Rho GTPase-activating protein 35 | B95: Ovis aries | C95: KAG5200936 | D95: ARHGAP35 | E95: 170 kDa | M95: 0.1 | O95: 0.07 | P95: 0.22 | Q95: 0.12 | R95: 0.09 | T95: 0.27 | U95: 0.00 | V95: 0.00 | W95: 0.00 | X95: 0.33 | Y95: 0.11 | Z95: 0.35 | AA95: 0.11 | AB95: 0.00 | AC95: 0.00 | AD95: 0.00 | AE95: 0.11 | AF95: 0.37 | AG95: 0.23 | AH95: 0.00 | AI95: 0.11 | AJ95: 0.13 | AK95: 0.12 | AL95: 0.10
A96: rho GDP-dissociation inhibitor 1 | B96: Bos taurus | C96: NP_788823 | D96: ARHGDIA | E96: 23 kDa | H96: x | I96: x | K96: x | M96: 6.7 | O96: 6.81 | P96: 6.57 | Q96: 7.40 | R96: 6.19 | T96: 6.43 | U96: 6.66 | V96: 7.05 | W96: 7.11 | X96: 7.48 | Y96: 6.12 | Z96: 6.07 | AA96: 6.63 | AB96: 7.83 | AC96: 8.19 | AD96: 6.61 | AE96: 6.90 | AF96: 7.84 | AG96: 7.04 | AH96: 5.44 | AI96: 6.19 | AJ96: 5.97 | AK96: 6.97 | AL96: 6.41
A97: PREDICTED: rho guanine nucleotide exchange factor 1 isoform X1 | B97: Capra hircus | C97: XP_017917961 | D97: ARHGEF1 | E97: 111 kDa | M97: 0.3 | O97: 0.04 | P97: 0.41 | Q97: 0.28 | R97: 0.51 | T97: 0.00 | U97: 0.16 | V97: 0.00 | W97: 0.00 | X97: 0.49 | Y97: 0.32 | Z97: 0.85 | AA97: 0.00 | AB97: 0.03 | AC97: 0.00 | AD97: 0.11 | AE97: 0.47 | AF97: 0.24 | AG97: 0.81 | AH97: 0.45 | AI97: 0.45 | AJ97: 0.67 | AK97: 0.40 | AL97: 0.59
A98: rho guanine nucleotide exchange factor 10-like protein isoform X3 | B98: Ovis aries | C98: XP_027821451 | D98: ARHGEF10L | E98: 135 kDa | K98: x | M98: 1.7 | O98: 1.55 | P98: 1.50 | Q98: 1.30 | R98: 2.63 | T98: 1.25 | U98: 2.34 | V98: 1.29 | W98: 1.30 | X98: 0.33 | Y98: 2.19 | Z98: 2.49 | AA98: 1.01 | AB98: 0.00 | AC98: 0.33 | AD98: 2.23 | AE98: 2.72 | AF98: 1.47 | AG98: 1.07 | AH98: 3.57 | AI98: 1.30 | AJ98: 1.12 | AK98: 5.04 | AL98: 2.11
A99: Rho guanine nucleotide exchange factor 16 | B99: Ovis aries | C99: KAG5202391 | D99: ARHGEF16 | E99: 222 kDa | M99: 0.9 | O99: 0.23 | P99: 1.15 | Q99: 0.97 | R99: 1.26 | T99: 0.00 | U99: 0.29 | V99: 0.31 | W99: 0.33 | X99: 1.31 | Y99: 1.25 | Z99: 0.71 | AA99: 1.32 | AB99: 0.00 | AC99: 0.00 | AD99: 0.94 | AE99: 2.39 | AF99: 1.10 | AG99: 1.39 | AH99: 0.00 | AI99: 1.94 | AJ99: 0.77 | AK99: 1.80 | AL99: 1.80
A100: rho guanine nucleotide exchange factor 18 isoform X3 | B100: Ovis aries | C100: XP_027825501 | D100: ARHGEF18 | E100: 149 kDa | M100: 0.2 | O100: 0.20 | P100: 0.39 | Q100: 0.08 | R100: 0.17 | T100: 0.00 | U100: 0.15 | V100: 0.00 | W100: 0.65 | X100: 0.00 | Y100: 0.31 | Z100: 0.89 | AA100: 0.34 | AB100: 0.00 | AC100: 0.33 | AD100: 0.00 | AE100: 0.00 | AF100: 0.00 | AG100: 0.18 | AH100: 0.00 | AI100: 0.49 | AJ100: 0.00 | AK100: 0.36 | AL100: 0.00
A101: rho guanine nucleotide exchange factor 2 isoform X7 | B101: Ovis aries | C101: XP_027832087 | D101: ARHGEF2 | E101: 112 kDa | M101: 0.7 | O101: 0.59 | P101: 0.46 | Q101: 0.76 | R101: 1.04 | T101: 0.84 | U101: 0.83 | V101: 0.38 | W101: 0.33 | X101: 0.55 | Y101: 0.31 | Z101: 0.53 | AA101: 0.44 | AB101: 0.86 | AC101: 0.22 | AD101: 0.48 | AE101: 1.08 | AF101: 0.98 | AG101: 0.93 | AH101: 0.97 | AI101: 0.87 | AJ101: 1.01 | AK101: 1.26 | AL101: 1.11
A102: rho guanine nucleotide exchange factor 7 isoform X7 | B102: Bos taurus | C102: XP_024855650 | D102: ARHGEF7 | E102: 80 kDa | M102: 0.1 | O102: 0.16 | P102: 0.13 | Q102: 0.09 | R102: 0.06 | T102: 0.09 | U102: 0.23 | V102: 0.07 | W102: 0.26 | X102: 0.00 | Y102: 0.31 | Z102: 0.07 | AA102: 0.13 | AB102: 0.00 | AC102: 0.06 | AD102: 0.00 | AE102: 0.14 | AF102: 0.22 | AG102: 0.14 | AH102: 0.00 | AI102: 0.13 | AJ102: 0.08 | AK102: 0.00 | AL102: 0.12
A103: ADP-ribosylation factor-like protein 2-binding protein | B103: Ovis aries | C103: NP_001156023 | D103: ARL2BP | E103: 19 kDa | H103: x | M103: 0.3 | O103: 0.22 | P103: 0.41 | Q103: 0.41 | R103: 0.17 | T103: 0.00 | U103: 0.00 | V103: 0.32 | W103: 0.54 | X103: 0.55 | Y103: 0.63 | Z103: 0.12 | AA103: 0.33 | AB103: 0.20 | AC103: 0.43 | AD103: 0.43 | AE103: 0.45 | AF103: 0.61 | AG103: 0.35 | AH103: 0.66 | AI103: 0.11 | AJ103: 0.00 | AK103: 0.00 | AL103: 0.10
A104: PREDICTED: LOW QUALITY PROTEIN: ADP-ribosylation factor-like protein 3 | B104: Camelus bactrianus | C104: XP_010969282.1 | D104: ARL3 | E104: 20 kDa | H104: x | K104: x | M104: 2.3 | O104: 1.92 | P104: 1.69 | Q104: 2.76 | R104: 2.69 | T104: 1.84 | U104: 1.16 | V104: 3.71 | W104: 0.98 | X104: 0.99 | Y104: 2.35 | Z104: 1.42 | AA104: 1.99 | AB104: 1.36 | AC104: 3.23 | AD104: 2.54 | AE104: 4.43 | AF104: 2.40 | AG104: 2.62 | AH104: 2.92 | AI104: 3.92 | AJ104: 2.43 | AK104: 2.70 | AL104: 1.49
A105: PREDICTED: ADP-ribosylation factor-like protein 6 isoform X1 | B105: Capra hircus | C105: XP_017911139 | D105: ARL6 | E105: 22 kDa | H105: x | M105: 0.6 | O105: 0.47 | P105: 0.42 | Q105: 0.90 | R105: 0.73 | T105: 0.00 | U105: 0.59 | V105: 0.65 | W105: 0.65 | X105: 0.33 | Y105: 0.31 | Z105: 0.35 | AA105: 0.66 | AB105: 0.00 | AC105: 1.61 | AD105: 0.95 | AE105: 0.68 | AF105: 0.74 | AG105: 1.43 | AH105: 0.98 | AI105: 0.67 | AJ105: 0.00 | AK105: 1.09 | AL105: 0.91
A106: armadillo repeat-containing protein 3 isoform X1 | B106: Ovis aries | C106: XP_012043709 | D106: ARMC3 | E106: 96 kDa | M106: 0.1 | O106: 0.10 | P106: 0.10 | Q106: 0.12 | R106: 0.15 | T106: 0.09 | U106: 0.06 | V106: 0.00 | W106: 0.26 | X106: 0.13 | Y106: 0.06 | Z106: 0.07 | AA106: 0.13 | AB106: 0.00 | AC106: 0.00 | AD106: 0.38 | AE106: 0.00 | AF106: 0.22 | AG106: 0.14 | AH106: 0.06 | AI106: 0.13 | AJ106: 0.30 | AK106: 0.07 | AL106: 0.18
A107: PREDICTED: armadillo repeat-containing protein 6 isoform X2 | B107: Capra hircus | C107: XP_017906959 | D107: ARMC6 | E107: 50 kDa | M107: 0.1 | O107: 0.14 | P107: 0.44 | Q107: 0.00 | R107: 0.00 | T107: 0.00 | U107: 0.58 | V107: 0.00 | W107: 0.00 | X107: 0.00 | Y107: 0.00 | Z107: 1.42 | AA107: 0.34 | AB107: 0.00 | AC107: 0.00 | AD107: 0.00 | AE107: 0.00 | AF107: 0.00 | AG107: 0.00 | AH107: 0.00 | AI107: 0.00 | AJ107: 0.00 | AK107: 0.00 | AL107: 0.00
A108: damage-control phosphatase ARMT1 | B108: Ovis aries | C108: XP_012038508 | D108: ARMT1 | E108: 51 kDa | H108: x | K108: x | M108: 3.6 | O108: 2.95 | P108: 5.08 | Q108: 2.93 | R108: 3.29 | T108: 3.33 | U108: 2.63 | V108: 2.26 | W108: 3.60 | X108: 3.94 | Y108: 5.33 | Z108: 6.05 | AA108: 5.00 | AB108: 1.81 | AC108: 3.24 | AD108: 2.22 | AE108: 2.05 | AF108: 4.42 | AG108: 3.83 | AH108: 3.26 | AI108: 2.91 | AJ108: 3.01 | AK108: 2.16 | AL108: 5.12
A109: actin-related protein 2/3 complex subunit 1B | B109: Ovis aries | C109: XP_014959741 | D109: ARPC1B | E109: 41 kDa | H109: x | M109: 1.0 | O109: 1.01 | P109: 1.13 | Q109: 0.84 | R109: 0.94 | T109: 0.50 | U109: 1.11 | V109: 1.36 | W109: 1.06 | X109: 1.12 | Y109: 1.12 | Z109: 0.79 | AA109: 1.47 | AB109: 0.70 | AC109: 0.98 | AD109: 1.43 | AE109: 0.82 | AF109: 0.52 | AG109: 0.58 | AH109: 0.76 | AI109: 1.36 | AJ109: 1.01 | AK109: 0.72 | AL109: 0.85
A110: PREDICTED: LOW QUALITY PROTEIN: actin-related protein 2/3 complex subunit 2 | B110: Bos mutus | C110: XP_014331847 | D110: ARPC2 | E110: 34 kDa | H110: x | K110: x | M110: 5.6 | O110: 7.09 | P110: 7.94 | Q110: 4.56 | R110: 2.84 | T110: 2.10 | U110: 8.75 | V110: 10.00 | W110: 7.51 | X110: 9.55 | Y110: 8.77 | Z110: 7.29 | AA110: 6.14 | AB110: 4.50 | AC110: 4.87 | AD110: 4.78 | AE110: 3.06 | AF110: 6.26 | AG110: 3.86 | AH110: 1.95 | AI110: 5.06 | AJ110: 1.31 | AK110: 3.06 | AL110: 2.85
A111: Actin-related protein 2/3 complex subunit 5 | B111: Ovis aries | C111: KAG5211122 | D111: ARPC5 | E111: 22 kDa | H111: x | M111: 0.1 | O111: 0.08 | P111: 0.04 | Q111: 0.15 | R111: 0.12 | T111: 0.19 | U111: 0.02 | V111: 0.05 | W111: 0.05 | X111: 0.04 | Y111: 0.07 | Z111: 0.02 | AA111: 0.02 | AB111: 0.12 | AC111: 0.13 | AD111: 0.09 | AE111: 0.17 | AF111: 0.22 | AG111: 0.17 | AH111: 0.11 | AI111: 0.13 | AJ111: 0.15 | AK111: 0.12 | AL111: 0.08
A112: actin related protein 2/3 complex subunit 5 | B112: Capra hircus | C112: AFN27529 | D112: ARPC5 | E112: 16 kDa | H112: x | M112: 0.9 | O112: 1.15 | P112: 0.69 | Q112: 1.04 | R112: 0.87 | T112: 1.35 | U112: 1.09 | V112: 1.52 | W112: 0.65 | X112: 0.66 | Y112: 0.63 | Z112: 0.71 | AA112: 0.75 | AB112: 0.75 | AC112: 1.46 | AD112: 0.96 | AE112: 1.02 | AF112: 1.10 | AG112: 0.96 | AH112: 0.81 | AI112: 0.65 | AJ112: 0.66 | AK112: 1.26 | AL112: 0.98
A113: arpin | B113: Bos taurus | C113: NP_001069772 | D113: ARPIN | E113: 25 kDa | M113: 0.9 | O113: 0.93 | P113: 0.66 | Q113: 0.98 | R113: 0.85 | T113: 0.84 | U113: 0.44 | V113: 1.45 | W113: 0.98 | X113: 0.33 | Y113: 0.78 | Z113: 0.53 | AA113: 1.00 | AB113: 0.45 | AC113: 0.81 | AD113: 1.11 | AE113: 1.19 | AF113: 1.29 | AG113: 1.06 | AH113: 0.82 | AI113: 1.29 | AJ113: 0.75 | AK113: 1.26 | AL113: 0.15
A114: beta-arrestin-1 isoform X1 | B114: Ovis aries | C114: XP_004016376 | D114: ARRB1 | E114: 47 kDa | M114: 0.1 | O114: 0.10 | P114: 0.12 | Q114: 0.13 | R114: 0.09 | T114: 0.03 | U114: 0.08 | V114: 0.14 | W114: 0.14 | X114: 0.14 | Y114: 0.14 | Z114: 0.09 | AA114: 0.09 | AB114: 0.11 | AC114: 0.15 | AD114: 0.08 | AE114: 0.08 | AF114: 0.21 | AG114: 0.12 | AH114: 0.03 | AI114: 0.11 | AJ114: 0.09 | AK114: 0.10 | AL114: 0.13
A115: arsenite methyltransferase | B115: Ovis aries | C115: XP_027816312 | D115: AS3MT | E115: 42 kDa | M115: 0.3 | O115: 0.35 | P115: 0.34 | Q115: 0.44 | R115: 0.07 | T115: 0.63 | U115: 0.44 | V115: 0.00 | W115: 0.33 | X115: 0.00 | Y115: 0.00 | Z115: 0.53 | AA115: 0.83 | AB115: 0.76 | AC115: 0.49 | AD115: 0.16 | AE115: 0.68 | AF115: 0.55 | AG115: 0.00 | AH115: 0.16 | AI115: 0.00 | AJ115: 0.19 | AK115: 0.00 | AL115: 0.00
A116: PREDICTED: activating signal cointegrator 1 complex subunit 3 | B116: Equus asinus | C116: XP_014696581 | D116: ASCC3 | E116: 251 kDa | M116: 0.8 | O116: 0.82 | P116: 0.49 | Q116: 0.57 | R116: 1.19 | T116: 1.31 | U116: 0.73 | V116: 0.00 | W116: 1.25 | X116: 0.49 | Y116: 0.10 | Z116: 0.41 | AA116: 0.94 | AB116: 1.21 | AC116: 0.27 | AD116: 0.47 | AE116: 1.47 | AF116: 0.00 | AG116: 0.00 | AH116: 0.54 | AI116: 1.79 | AJ116: 1.00 | AK116: 1.92 | AL116: 0.70
A117: argininosuccinate lyase | B117: Ovis aries | C117: XP_027817735 | D117: ASL | E117: 53 kDa | M117: 0.2 | O117: 0.28 | P117: 0.25 | Q117: 0.20 | R117: 0.23 | T117: 0.26 | U117: 0.30 | V117: 0.29 | W117: 0.26 | X117: 0.22 | Y117: 0.16 | Z117: 0.42 | AA117: 0.21 | AB117: 0.08 | AC117: 0.12 | AD117: 0.33 | AE117: 0.27 | AF117: 0.23 | AG117: 0.17 | AH117: 0.12 | AI117: 0.48 | AJ117: 0.24 | AK117: 0.23 | AL117: 0.08
A118: PREDICTED: N-acetylserotonin O-methyltransferase-like protein | B118: Capra hircus | C118: XP_017899932 | D118: ASMTL | E118: 66 kDa | K118: x | M118: 2.6 | O118: 3.77 | P118: 3.60 | Q118: 1.00 | R118: 2.21 | T118: 5.02 | U118: 2.93 | V118: 3.87 | W118: 3.27 | X118: 3.62 | Y118: 2.19 | Z118: 3.92 | AA118: 4.66 | AB118: 1.51 | AC118: 0.64 | AD118: 0.95 | AE118: 0.00 | AF118: 2.20 | AG118: 0.70 | AH118: 1.96 | AI118: 2.60 | AJ118: 1.12 | AK118: 1.44 | AL118: 3.91
A119: tether containing UBX domain for GLUT4 isoform X1 | B119: Ovis aries | C119: XP_014954392 | D119: ASPSCR1 | E119: 60 kDa | M119: 1.3 | O119: 1.16 | P119: 1.75 | Q119: 1.39 | R119: 1.06 | T119: 1.95 | U119: 1.21 | V119: 0.64 | W119: 0.82 | X119: 1.65 | Y119: 2.66 | Z119: 1.19 | AA119: 1.49 | AB119: 0.91 | AC119: 1.29 | AD119: 1.37 | AE119: 1.76 | AF119: 1.54 | AG119: 1.46 | AH119: 0.98 | AI119: 1.03 | AJ119: 1.01 | AK119: 0.60 | AL119: 1.70
A120: Isoaspartyl peptidase/L-asparaginase | B120: Ovis aries | C120: KAG5196445 | D120: ASRGL1 | E120: 32 kDa | H120: x | K120: x | M120: 5.2 | O120: 5.16 | P120: 4.78 | Q120: 5.96 | R120: 4.96 | T120: 3.97 | U120: 4.34 | V120: 5.21 | W120: 7.12 | X120: 4.12 | Y120: 4.48 | Z120: 4.75 | AA120: 5.76 | AB120: 4.68 | AC120: 4.64 | AD120: 5.20 | AE120: 6.25 | AF120: 7.35 | AG120: 7.60 | AH120: 6.34 | AI120: 5.53 | AJ120: 5.61 | AK120: 3.30 | AL120: 4.01
A121: PREDICTED: ubiquitin-like modifier-activating enzyme ATG7 | B121: Bos indicus | C121: XP_019840162 | D121: ATG7 | E121: 27 kDa | H121: x | M121: 1.5 | O121: 1.43 | P121: 1.82 | Q121: 1.29 | R121: 1.37 | T121: 0.39 | U121: 1.46 | V121: 1.61 | W121: 2.29 | X121: 1.97 | Y121: 1.56 | Z121: 1.77 | AA121: 1.99 | AB121: 1.81 | AC121: 2.27 | AD121: 1.58 | AE121: 1.02 | AF121: 0.00 | AG121: 1.03 | AH121: 1.62 | AI121: 1.29 | AJ121: 0.74 | AK121: 1.08 | AL121: 2.09
A122: bifunctional purine biosynthesis protein ATIC | B122: Ovis aries | C122: XP_004004954 | D122: ATIC | E122: 65 kDa | I122: x | K122: x | M122: 7.6 | O122: 6.62 | P122: 9.03 | Q122: 6.77 | R122: 8.14 | T122: 6.39 | U122: 6.16 | V122: 7.40 | W122: 6.52 | X122: 9.98 | Y122: 10.96 | Z122: 7.95 | AA122: 7.24 | AB122: 6.63 | AC122: 5.72 | AD122: 7.26 | AE122: 6.04 | AF122: 6.13 | AG122: 8.85 | AH122: 7.10 | AI122: 9.15 | AJ122: 8.13 | AK122: 7.19 | AL122: 9.14
A123: copper transport protein ATOX1 isoform X1 | B123: Odocoileus virginianus texanus | C123: XP_020736584 | D123: ATOX1 | E123: 10 kDa | H123: x | K123: x | M123: 3.6 | O123: 3.88 | P123: 3.38 | Q123: 4.53 | R123: 2.52 | T123: 3.09 | U123: 3.41 | V123: 6.54 | W123: 2.50 | X123: 2.09 | Y123: 3.03 | Z123: 3.08 | AA123: 5.33 | AB123: 6.44 | AC123: 4.75 | AD123: 6.35 | AE123: 4.14 | AF123: 2.82 | AG123: 2.68 | AH123: 2.60 | AI123: 2.83 | AJ123: 3.27 | AK123: 2.28 | AL123: 1.60
A124: Calcium-transporting ATPase | B124: Muntiacus reevesi | C124: KAB0376681 | D124: ATP2A2 | E124: 134 kDa | M124: 0.2 | O124: 0.14 | P124: 0.24 | Q124: 0.20 | R124: 0.15 | T124: 0.00 | U124: 0.29 | V124: 0.00 | W124: 0.26 | X124: 0.33 | Y124: 0.12 | Z124: 0.43 | AA124: 0.07 | AB124: 0.12 | AC124: 0.00 | AD124: 0.13 | AE124: 0.41 | AF124: 0.07 | AG124: 0.48 | AH124: 0.20 | AI124: 0.26 | AJ124: 0.15 | AK124: 0.00 | AL124: 0.12
A125: ATP synthase subunit alpha, mitochondrial | B125: Ovis aries | C125: XP_004020569 | D125: ATP5F1A | E125: 60 kDa | I125: x | M125: 0.8 | O125: 1.18 | P125: 1.24 | Q125: 0.41 | R125: 0.22 | T125: 0.00 | U125: 4.38 | V125: 0.33 | W125: 0.00 | X125: 0.00 | Y125: 0.62 | Z125: 0.00 | AA125: 4.35 | AB125: 0.00 | AC125: 0.00 | AD125: 0.00 | AE125: 0.00 | AF125: 0.00 | AG125: 2.45 | AH125: 0.00 | AI125: 0.00 | AJ125: 0.00 | AK125: 1.08 | AL125: 0.00
A126: V-type proton ATPase catalytic subunit A | B126: Bos taurus | C126: P31404 | D126: ATP6V1A | E126: 68 kDa | K126: x | M126: 2.1 | O126: 2.26 | P126: 2.31 | Q126: 1.95 | R126: 1.87 | T126: 2.24 | U126: 2.24 | V126: 2.33 | W126: 2.25 | X126: 2.23 | Y126: 2.37 | Z126: 2.41 | AA126: 2.22 | AB126: 1.81 | AC126: 1.76 | AD126: 1.59 | AE126: 2.12 | AF126: 1.84 | AG126: 2.57 | AH126: 1.73 | AI126: 1.67 | AJ126: 1.93 | AK126: 1.76 | AL126: 2.24
A127: H+-ATPase non-catalytic subunit B | B127: Bos taurus | C127: CAA41275 | D127: ATP6V1B2 | E127: 57 kDa | K127: x | M127: 2.7 | O127: 2.97 | P127: 2.58 | Q127: 2.63 | R127: 2.80 | T127: 2.93 | U127: 3.43 | V127: 2.82 | W127: 2.69 | X127: 3.21 | Y127: 2.66 | Z127: 2.05 | AA127: 2.41 | AB127: 2.34 | AC127: 2.59 | AD127: 2.54 | AE127: 2.13 | AF127: 3.03 | AG127: 3.15 | AH127: 2.85 | AI127: 2.85 | AJ127: 2.74 | AK127: 2.70 | AL127: 2.86
A128: V-type proton ATPase subunit E 1 | B128: Ovis aries | C128: XP_004007021 | D128: ATP6V1E1 | E128: 26 kDa | H128: x | K128: x | M128: 8.0 | O128: 7.09 | P128: 7.92 | Q128: 8.92 | R128: 7.89 | T128: 7.18 | U128: 7.59 | V128: 8.05 | W128: 5.55 | X128: 5.26 | Y128: 6.89 | Z128: 9.58 | AA128: 9.96 | AB128: 8.43 | AC128: 9.71 | AD128: 9.52 | AE128: 6.81 | AF128: 10.30 | AG128: 8.74 | AH128: 8.44 | AI128: 8.17 | AJ128: 9.07 | AK128: 6.85 | AL128: 6.93
A129: ATPase H+ transporting V1 subunit F | B129: Camelus ferus | C129: EPY81113 | D129: ATP6V1F | E129: 24 kDa | K129: x | M129: 1.1 | O129: 0.71 | P129: 0.51 | Q129: 2.44 | R129: 0.56 | T129: 1.08 | U129: 0.13 | V129: 1.44 | W129: 0.20 | X129: 0.83 | Y129: 0.45 | Z129: 0.56 | AA129: 0.19 | AB129: 2.01 | AC129: 3.79 | AD129: 0.53 | AE129: 3.57 | AF129: 3.86 | AG129: 0.85 | AH129: 0.28 | AI129: 0.44 | AJ129: 0.51 | AK129: 0.89 | AL129: 0.68
A130: V-type proton ATPase subunit G 1 | B130: Ovis aries | C130: XP_014948445 | D130: ATP6V1G1 | E130: 14 kDa | K130: x | M130: 5.4 | O130: 4.93 | P130: 5.02 | Q130: 5.81 | R130: 5.79 | T130: 6.04 | U130: 3.80 | V130: 4.34 | W130: 5.55 | X130: 4.77 | Y130: 4.69 | Z130: 4.63 | AA130: 6.00 | AB130: 4.67 | AC130: 5.66 | AD130: 4.77 | AE130: 6.29 | AF130: 6.99 | AG130: 6.47 | AH130: 5.69 | AI130: 5.70 | AJ130: 6.98 | AK130: 5.75 | AL130: 4.81
A131: V-type proton ATPase subunit H isoform X1 | B131: Ovis aries | C131: XP_004011727 | D131: ATP6V1H | E131: 56 kDa | M131: 0.2 | O131: 0.30 | P131: 0.16 | Q131: 0.15 | R131: 0.27 | T131: 0.35 | U131: 0.38 | V131: 0.22 | W131: 0.23 | X131: 0.23 | Y131: 0.17 | Z131: 0.11 | AA131: 0.15 | AB131: 0.05 | AC131: 0.05 | AD131: 0.24 | AE131: 0.13 | AF131: 0.11 | AG131: 0.30 | AH131: 0.35 | AI131: 0.25 | AJ131: 0.35 | AK131: 0.17 | AL131: 0.25
A132: ataxin-10 | B132: Ovis aries | C132: XP_027824011 | D132: ATXN10 | E132: 53 kDa | K132: x | M132: =AVERAGE(O132:R132) -> 7.2 | O132: =AVERAGE(T132:W132) -> 8.10 | P132: =AVERAGE(X132:AA132) -> 7.01 | Q132: =AVERAGE(AB132:AG132) -> 6.82 | R132: =AVERAGE(AH132:AL132) -> 6.86 | T132: 9.61 | U132: 8.19 | V132: 6.45 | W132: 8.16 | X132: 5.92 | Y132: 6.27 | Z132: 8.54 | AA132: 7.31 | AB132: 6.92 | AC132: 6.47 | AD132: 6.98 | AE132: 6.48 | AF132: 8.10 | AG132: 5.95 | AH132: 6.17 | AI132: 6.52 | AJ132: 7.16 | AK132: 7.56 | AL132: 6.91
A133: ubiquitinyl hydrolase 1 | B133: Muntiacus muntjak | C133: KAB0361160 | D133: ATXN3 | E133: 34 kDa | H133: x | K133: x | M133: 2.0 | O133: 1.96 | P133: 1.75 | Q133: 2.36 | R133: 1.82 | T133: 2.51 | U133: 1.75 | V133: 1.93 | W133: 1.63 | X133: 1.65 | Y133: 1.26 | Z133: 1.43 | AA133: 2.67 | AB133: 2.11 | AC133: 1.94 | AD133: 1.91 | AE133: 1.70 | AF133: 4.41 | AG133: 2.10 | AH133: 1.62 | AI133: 2.61 | AJ133: 1.91 | AK133: 1.44 | AL133: 1.51
A134: alpha-2-glycoprotein 1, zinc-binding | B134: Homo sapiens | C134: AAA61311 | D134: AZGP1 | E134: 34 kDa | G134: x | M134: 0.0 | O134: 0.00 | P134: 0.04 | Q134: 0.04 | R134: 0.01 | T134: 0.00 | U134: 0.00 | V134: 0.00 | W134: 0.00 | X134: 0.00 | Y134: 0.05 | Z134: 0.12 | AA134: 0.00 | AB134: 0.25 | AC134: 0.00 | AD134: 0.00 | AE134: 0.00 | AF134: 0.00 | AG134: 0.00 | AH134: 0.05 | AI134: 0.00 | AJ134: 0.00 | AK134: 0.00 | AL134: 0.00
A135: beta-2-microglobulin | B135: Ovis aries | C135: ABP37878 | D135: B2M | E135: 14 kDa | G135: x | M135: 0.6 | O135: 0.64 | P135: 0.76 | Q135: 0.48 | R135: 0.46 | T135: 0.53 | U135: 0.51 | V135: 0.72 | W135: 0.82 | X135: 0.82 | Y135: 0.47 | Z135: 0.98 | AA135: 0.75 | AB135: 0.53 | AC135: 0.49 | AD135: 0.48 | AE135: 0.34 | AF135: 0.37 | AG135: 0.70 | AH135: 0.33 | AI135: 0.49 | AJ135: 0.66 | AK135: 0.45 | AL135: 0.38
A136: BAG family molecular chaperone regulator 3 | B136: Ovis aries | C136: KAG5196074 | D136: BAG3 | E136: 61 kDa | M136: 0.8 | O136: 0.71 | P136: 1.01 | Q136: 0.62 | R136: 1.06 | T136: 1.08 | U136: 0.29 | V136: 0.65 | W136: 0.82 | X136: 0.66 | Y136: 0.78 | Z136: 1.60 | AA136: 1.00 | AB136: 0.46 | AC136: 0.33 | AD136: 0.80 | AE136: 0.51 | AF136: 0.92 | AG136: 0.69 | AH136: 0.81 | AI136: 1.30 | AJ136: 0.74 | AK136: 1.25 | AL136: 1.19
A137: large proline-rich protein BAG6 isoform X1 | B137: Ovis aries | C137: XP_027814641 | D137: BAG6 | E137: 122 kDa | K137: x | M137: 3.2 | O137: 2.65 | P137: 3.40 | Q137: 3.12 | R137: 3.54 | T137: 3.11 | U137: 2.71 | V137: 2.26 | W137: 2.53 | X137: 3.70 | Y137: 3.76 | Z137: 3.91 | AA137: 2.24 | AB137: 2.49 | AC137: 2.84 | AD137: 3.42 | AE137: 3.49 | AF137: 3.77 | AG137: 2.71 | AH137: 3.66 | AI137: 3.11 | AJ137: 3.21 | AK137: 3.60 | AL137: 4.14
A138: Bardet-Biedl syndrome 1 protein isoform X1 | B138: Ovis aries | C138: XP_027815275 | D138: BBS1 | E138: 65 kDa | M138: 0.4 | O138: 0.72 | P138: 0.63 | Q138: 0.16 | R138: 0.12 | T138: 1.12 | U138: 0.68 | V138: 0.00 | W138: 1.09 | X138: 0.44 | Y138: 0.84 | Z138: 0.71 | AA138: 0.55 | AB138: 0.00 | AC138: 0.11 | AD138: 0.00 | AE138: 0.00 | AF138: 0.61 | AG138: 0.23 | AH138: 0.22 | AI138: 0.00 | AJ138: 0.38 | AK138: 0.00 | AL138: 0.00
A139: protein PTHB1 isoform X1 | B139: Ovis aries | C139: XP_004007956 | D139: BBS9 | E139: 99 kDa | M139: 0.1 | O139: 0.09 | P139: 0.12 | Q139: 0.03 | R139: 0.05 | T139: 0.20 | U139: 0.04 | V139: 0.03 | W139: 0.08 | X139: 0.08 | Y139: 0.12 | Z139: 0.15 | AA139: 0.13 | AB139: 0.04 | AC139: 0.03 | AD139: 0.03 | AE139: 0.00 | AF139: 0.00 | AG139: 0.05 | AH139: 0.08 | AI139: 0.08 | AJ139: 0.02 | AK139: 0.02 | AL139: 0.06
A140: basal cell adhesion molecule | B140: Ovis aries | C140: XP_027834256 | D140: BCAM | E140: 68 kDa | G140: x | K140: x | M140: 3.3 | O140: 4.32 | P140: 4.12 | Q140: 2.86 | R140: 1.87 | T140: 3.29 | U140: 5.25 | V140: 4.83 | W140: 3.92 | X140: 2.63 | Y140: 5.95 | Z140: 4.61 | AA140: 3.30 | AB140: 1.50 | AC140: 1.94 | AD140: 3.17 | AE140: 3.41 | AF140: 2.94 | AG140: 4.20 | AH140: 3.25 | AI140: 2.91 | AJ140: 1.13 | AK140: 1.44 | AL140: 0.60
A141: PREDICTED: 3-hydroxybutyrate dehydrogenase type 2 | B141: Capra hircus | C141: XP_005681413 | D141: BDH2 | E141: 27 kDa | H141: x | K141: x | M141: 3.2 | O141: 3.24 | P141: 2.99 | Q141: 3.73 | R141: 2.79 | T141: 2.51 | U141: 2.34 | V141: 4.19 | W141: 3.91 | X141: 2.96 | Y141: 3.13 | Z141: 3.19 | AA141: 2.66 | AB141: 3.62 | AC141: 4.21 | AD141: 3.51 | AE141: 3.07 | AF141: 5.15 | AG141: 2.80 | AH141: 3.59 | AI141: 2.62 | AJ141: 3.79 | AK141: 2.16 | AL141: 1.81
A142: biglycan precursor | B142: Ovis aries | C142: NP_001009201 | D142: BGN | E142: 42 kDa | G142: x | M142: 0.0 | O142: 0.00 | P142: 0.00 | Q142: 0.04 | R142: 0.02 | T142: 0.00 | U142: 0.02 | V142: 0.00 | W142: 0.00 | X142: 0.02 | Y142: 0.00 | Z142: 0.00 | AA142: 0.00 | AB142: 0.03 | AC142: 0.07 | AD142: 0.03 | AE142: 0.11 | AF142: 0.00 | AG142: 0.00 | AH142: 0.05 | AI142: 0.03 | AJ142: 0.02 | AK142: 0.00 | AL142: 0.00
A143: baculoviral IAP repeat containing 6 | B143: Homo sapiens | C143: EAX00447 | D143: BIRC6 | E143: 528 kDa | M143: 1.6 | O143: 1.62 | P143: 1.54 | Q143: 1.75 | R143: 1.55 | T143: 1.34 | U143: 1.63 | V143: 1.72 | W143: 1.80 | X143: 1.33 | Y143: 1.52 | Z143: 1.16 | AA143: 2.15 | AB143: 2.27 | AC143: 2.25 | AD143: 1.65 | AE143: 2.02 | AF143: 1.10 | AG143: 1.22 | AH143: 1.66 | AI143: 1.40 | AJ143: 1.33 | AK143: 1.99 | AL143: 1.36
A144: bleomycin hydrolase isoform X1 | B144: Camelus dromedarius | C144: XP_031324338 | D144: BLMH | E144: 64 kDa | M144: 1.2 | O144: 1.04 | P144: 1.04 | Q144: 0.91 | R144: 1.74 | T144: 0.63 | U144: 1.90 | V144: 0.80 | W144: 0.82 | X144: 0.82 | Y144: 0.94 | Z144: 1.25 | AA144: 1.17 | AB144: 0.90 | AC144: 1.45 | AD144: 0.63 | AE144: 0.68 | AF144: 1.10 | AG144: 0.69 | AH144: 1.79 | AI144: 1.62 | AJ144: 2.09 | AK144: 1.26 | AL144: 1.95
A145: biogenesis of lysosome-related organelles complex 1 subunit 2 | B145: Ovis aries | C145: XP_004020159 | D145: BLOC1S2 | E145: 16 kDa | H145: x | M145: 0.0 | O145: 0.00 | P145: 0.00 | Q145: 0.00 | R145: 0.12 | T145: 0.00 | U145: 0.00 | V145: 0.00 | W145: 0.00 | X145: 0.00 | Y145: 0.00 | Z145: 0.00 | AA145: 0.00 | AB145: 0.00 | AC145: 0.00 | AD145: 0.00 | AE145: 0.00 | AF145: 0.00 | AG145: 0.00 | AH145: 0.00 | AI145: 0.00 | AJ145: 0.00 | AK145: 0.00 | AL145: 0.59
A146: biliverdin reductase A | B146: Ovis aries | C146: XP_004008040 | D146: BLVRA | E146: 34 kDa | H146: x | K146: x | M146: 2.9 | O146: 3.36 | P146: 3.03 | Q146: 2.87 | R146: 2.51 | T146: 3.74 | U146: 3.68 | V146: 2.45 | W146: 3.55 | X146: 2.50 | Y146: 2.46 | Z146: 3.46 | AA146: 3.70 | AB146: 2.87 | AC146: 2.98 | AD146: 3.12 | AE146: 2.07 | AF146: 3.29 | AG146: 2.89 | AH146: 2.26 | AI146: 2.49 | AJ146: 2.44 | AK146: 3.02 | AL146: 2.35
A147: PREDICTED: flavin reductase (NADPH) | B147: Capra hircus | C147: XP_017917916 | D147: BLVRB | E147: 22 kDa | H147: x | K147: x | M147: 5.9 | O147: 7.75 | P147: 4.44 | Q147: 6.72 | R147: 4.54 | T147: 4.19 | U147: 9.36 | V147: 11.26 | W147: 6.20 | X147: 2.96 | Y147: 5.63 | Z147: 2.84 | AA147: 6.33 | AB147: 4.52 | AC147: 4.53 | AD147: 7.63 | AE147: 7.16 | AF147: 6.99 | AG147: 9.46 | AH147: 6.84 | AI147: 4.57 | AJ147: 3.79 | AK147: 3.61 | AL147: 3.91
A148: bolA-like protein 2 isoform X2 | B148: Bos taurus | C148: XP_002698102 | D148: BOLA2B | E148: 10 kDa | M148: 1.3 | O148: 1.47 | P148: 0.95 | Q148: 1.41 | R148: 1.16 | T148: 0.82 | U148: 1.17 | V148: 1.93 | W148: 1.96 | X148: 1.64 | Y148: 0.63 | Z148: 0.71 | AA148: 0.83 | AB148: 0.60 | AC148: 2.26 | AD148: 0.63 | AE148: 1.03 | AF148: 2.02 | AG148: 1.92 | AH148: 0.98 | AI148: 1.47 | AJ148: 1.13 | AK148: 1.80 | AL148: 0.45
A149: 3'(2'),5'-bisphosphate nucleotidase 1 isoform X3 | B149: Bos taurus | C149: XP_005216872 | D149: BPNT1 | E149: 34 kDa | H149: x | K149: x | M149: 8.5 | O149: 7.38 | P149: 8.05 | Q149: 10.01 | R149: 8.39 | T149: 9.07 | U149: 7.87 | V149: 6.21 | W149: 6.37 | X149: 7.29 | Y149: 7.24 | Z149: 7.64 | AA149: 10.04 | AB149: 10.54 | AC149: 9.07 | AD149: 8.74 | AE149: 6.23 | AF149: 11.71 | AG149: 13.79 | AH149: 7.80 | AI149: 8.69 | AJ149: 9.16 | AK149: 7.93 | AL149: 8.38
A150: BRO1 domain-containing protein BROX | B150: Ovis aries | C150: XP_004013663 | D150: BROX | E150: 46 kDa | H150: x | M150: 1.0 | O150: 1.12 | P150: 1.53 | Q150: 0.88 | R150: 0.47 | T150: 1.69 | U150: 1.18 | V150: 0.65 | W150: 0.98 | X150: 2.30 | Y150: 1.57 | Z150: 1.60 | AA150: 0.66 | AB150: 0.60 | AC150: 1.29 | AD150: 0.94 | AE150: 0.67 | AF150: 0.74 | AG150: 1.05 | AH150: 0.33 | AI150: 0.97 | AJ150: 0.39 | AK150: 0.36 | AL150: 0.29
A151: transcription factor BTF3 homolog 4 | B151: Bos taurus | C151: NP_001091575 | D151: BTF3L4 | E151: 17 kDa | H151: x | M151: 0.2 | O151: 0.29 | P151: 0.10 | Q151: 0.48 | R151: 0.06 | T151: 0.31 | U151: 0.36 | V151: 0.33 | W151: 0.16 | X151: 0.00 | Y151: 0.08 | Z151: 0.09 | AA151: 0.25 | AB151: 0.53 | AC151: 0.81 | AD151: 0.56 | AE151: 0.09 | AF151: 0.64 | AG151: 0.27 | AH151: 0.08 | AI151: 0.00 | AJ151: 0.00 | AK151: 0.09 | AL151: 0.15
A152: chromatin complexes subunit BAP18 isoform X1 | B152: Ovis aries | C152: XP_014954091 | D152: C11H17orf49 | E152: 20 kDa | M152: 0.3 | O152: 0.30 | P152: 0.24 | Q152: 0.29 | R152: 0.19 | T152: 0.29 | U152: 0.26 | V152: 0.33 | W152: 0.33 | X152: 0.22 | Y152: 0.21 | Z152: 0.18 | AA152: 0.35 | AB152: 0.44 | AC152: 0.23 | AD152: 0.22 | AE152: 0.23 | AF152: 0.38 | AG152: 0.23 | AH152: 0.17 | AI152: 0.16 | AJ152: 0.19 | AK152: 0.18 | AL152: 0.26
A153: Complement C2 | B153: Ovis aries | C153: KAG5197029 | D153: C2 | E153: 150 kDa | G153: x | K153: x | M153: 3.0 | O153: 2.81 | P153: 3.05 | Q153: 3.08 | R153: 3.11 | T153: 3.76 | U153: 2.61 | V153: 2.58 | W153: 2.29 | X153: 3.29 | Y153: 3.44 | Z153: 2.49 | AA153: 2.98 | AB153: 3.02 | AC153: 2.27 | AD153: 4.46 | AE153: 3.41 | AF153: 2.21 | AG153: 3.13 | AH153: 2.93 | AI153: 4.24 | AJ153: 1.86 | AK153: 3.24 | AL153: 3.30
A154: ester hydrolase C11orf54 homolog isoform X1 | B154: Ovis aries | C154: XP_004019429 | D154: C21H11orf54 | E154: 35 kDa | H154: x | K154: x | M154: 5.3 | O154: 5.30 | P154: 4.88 | Q154: 6.60 | R154: 4.54 | T154: 7.18 | U154: 5.25 | V154: 4.19 | W154: 4.57 | X154: 4.28 | Y154: 5.33 | Z154: 3.91 | AA154: 5.99 | AB154: 9.36 | AC154: 9.06 | AD154: 6.66 | AE154: 4.43 | AF154: 6.25 | AG154: 3.84 | AH154: 4.55 | AI154: 6.52 | AJ154: 4.13 | AK154: 3.59 | AL154: 3.91
A155: queuosine salvage protein | B155: Ovis aries | C155: XP_004004160 | D155: C2H9orf64 | E155: 39 kDa | H155: x | K155: x | M155: 2.3 | O155: 2.25 | P155: 2.52 | Q155: 2.36 | R155: 2.05 | T155: 1.69 | U155: 2.19 | V155: 2.23 | W155: 2.90 | X155: 2.79 | Y155: 2.90 | Z155: 2.37 | AA155: 2.02 | AB155: 2.82 | AC155: 2.86 | AD155: 3.18 | AE155: 1.99 | AF155: 1.79 | AG155: 1.51 | AH155: 1.72 | AI155: 2.69 | AJ155: 1.53 | AK155: 1.71 | AL155: 2.59
A156: Complement C3 | B156: Ovis aries | C156: KAG5208847 | D156: C3 | E156: 200 kDa | I156: x | K156: x | M156: 37.8 | O156: 39.55 | P156: 35.37 | Q156: 35.68 | R156: 40.80 | T156: 49.72 | U156: 40.27 | V156: 32.95 | W156: 35.25 | X156: 39.65 | Y156: 34.20 | Z156: 38.33 | AA156: 29.30 | AB156: 49.92 | AC156: 22.17 | AD156: 40.06 | AE156: 25.25 | AF156: 40.11 | AG156: 36.56 | AH156: 34.50 | AI156: 44.20 | AJ156: 33.91 | AK156: 45.93 | AL156: 45.45
A157: PREDICTED: LOW QUALITY PROTEIN: complement C4-A | B157: Capra hircus | C157: XP_017900744 | D157: C4 | E157: 128 kDa | G157: x | K157: x | M157: 2.9 | O157: 2.11 | P157: 3.27 | Q157: 2.78 | R157: 3.37 | T157: 2.51 | U157: 2.19 | V157: 0.80 | W157: 2.94 | X157: 1.48 | Y157: 2.35 | Z157: 3.91 | AA157: 5.33 | AB157: 5.14 | AC157: 0.16 | AD157: 3.97 | AE157: 2.22 | AF157: 2.02 | AG157: 3.14 | AH157: 1.62 | AI157: 2.76 | AJ157: 1.32 | AK157: 4.68 | AL157: 6.46
A158: C4a anaphylatoxin | B158: Ovis aries | C158: KAG5197025 | D158: C4A | E158: 217 kDa | K158: x | M158: 3.7 | O158: 2.75 | P158: 3.79 | Q158: 3.93 | R158: 4.31 | T158: 2.51 | U158: 2.48 | V158: 1.46 | W158: 4.57 | X158: 1.81 | Y158: 2.35 | Z158: 5.70 | AA158: 5.33 | AB158: 6.32 | AC158: 0.16 | AD158: 7.16 | AE158: 2.22 | AF158: 4.59 | AG158: 3.14 | AH158: 1.62 | AI158: 2.78 | AJ158: 1.32 | AK158: 7.56 | AL158: 8.27
A159: carbonic anhydrase 1 | B159: Ovis aries | C159: XP_027829054 | D159: CA1 | E159: 29 kDa | H159: x | M159: 0.8 | O159: 1.10 | P159: 0.83 | Q159: 1.09 | R159: 0.24 | T159: 0.31 | U159: 0.44 | V159: 2.26 | W159: 1.38 | X159: 1.31 | Y159: 0.78 | Z159: 0.89 | AA159: 0.33 | AB159: 2.04 | AC159: 0.73 | AD159: 1.43 | AE159: 1.36 | AF159: 0.37 | AG159: 0.61 | AH159: 0.16 | AI159: 0.89 | AJ159: 0.00 | AK159: 0.00 | AL159: 0.15
A160: carbonic anhydrase 2 | B160: Ovis aries | C160: XP_027829052 | D160: CA2 | E160: 29 kDa | H160: x | K160: x | M160: 15.2 | O160: 17.73 | P160: 17.14 | Q160: 15.07 | R160: 10.77 | T160: 22.24 | U160: 12.57 | V160: 18.18 | W160: 17.94 | X160: 10.53 | Y160: 18.85 | Z160: 19.20 | AA160: 19.95 | AB160: 16.43 | AC160: 21.04 | AD160: 13.78 | AE160: 11.92 | AF160: 13.23 | AG160: 14.01 | AH160: 10.41 | AI160: 14.14 | AJ160: 11.37 | AK160: 5.39 | AL160: 12.54
A161: carbonic anhydrase-related protein | B161: Bos taurus | C161: NP_001077159 | D161: CA8 | E161: 33 kDa | H161: x | M161: 0.2 | O161: 0.17 | P161: 0.14 | Q161: 0.15 | R161: 0.17 | T161: 0.17 | U161: 0.12 | V161: 0.29 | W161: 0.10 | X161: 0.10 | Y161: 0.16 | Z161: 0.11 | AA161: 0.20 | AB161: 0.06 | AC161: 0.16 | AD161: 0.32 | AE161: 0.03 | AF161: 0.18 | AG161: 0.14 | AH161: 0.16 | AI161: 0.20 | AJ161: 0.19 | AK161: 0.18 | AL161: 0.12
A162: calcium-binding protein 39-like isoform X1 | B162: Ovis aries | C162: XP_004012124 | D162: CAB39L | E162: 39 kDa | H162: x | M162: 0.0 | O162: 0.03 | P162: 0.01 | Q162: 0.01 | R162: 0.00 | T162: 0.08 | U162: 0.02 | V162: 0.00 | W162: 0.02 | X162: 0.00 | Y162: 0.00 | Z162: 0.00 | AA162: 0.04 | AB162: 0.02 | AC162: 0.02 | AD162: 0.02 | AE162: 0.00 | AF162: 0.02 | AG162: 0.00 | AH162: 0.00 | AI162: 0.02 | AJ162: 0.00 | AK162: 0.00 | AL162: 0.00
A163: calcyclin-binding protein | B163: Ovis aries | C163: XP_004013866 | D163: CACYBP | E163: 26 kDa | H163: x | K163: x | M163: 5.8 | O163: 5.26 | P163: 4.77 | Q163: 6.61 | R163: 6.38 | T163: 4.39 | U163: 4.72 | V163: 7.07 | W163: 4.84 | X163: 4.66 | Y163: 6.06 | Z163: 3.32 | AA163: 5.05 | AB163: 8.14 | AC163: 7.23 | AD163: 6.13 | AE163: 5.39 | AF163: 6.93 | AG163: 5.84 | AH163: 4.72 | AI163: 6.73 | AJ163: 4.90 | AK163: 8.09 | AL163: 7.45
A164: PREDICTED: CAD protein isoform X1 | B164: Capra hircus | C164: XP_017911003 | D164: CAD | E164: 245 kDa | K164: x | M164: 11.9 | O164: 12.31 | P164: 11.01 | Q164: 12.25 | R164: 12.07 | T164: 11.32 | U164: 12.00 | V164: 10.73 | W164: 15.18 | X164: 12.37 | Y164: 11.46 | Z164: 10.69 | AA164: 9.51 | AB164: 14.42 | AC164: 12.95 | AD164: 12.06 | AE164: 16.41 | AF164: 9.78 | AG164: 7.87 | AH164: 12.01 | AI164: 11.48 | AJ164: 10.64 | AK164: 13.46 | AL164: 12.74
A165: Calreticulin | B165: Camelus ferus | C165: EPY88004 | D165: CALR | E165: 84 kDa | H165: x | I165: x | K165: x | M165: 5.1 | O165: 4.42 | P165: 5.51 | Q165: 4.51 | R165: 5.87 | T165: 3.58 | U165: 4.85 | V165: 4.11 | W165: 5.14 | X165: 5.26 | Y165: 4.37 | Z165: 6.58 | AA165: 5.84 | AB165: 4.29 | AC165: 4.04 | AD165: 3.32 | AE165: 4.43 | AF165: 6.16 | AG165: 4.82 | AH165: 6.25 | AI165: 6.15 | AJ165: 6.91 | AK165: 4.22 | AL165: 5.81
A166: PREDICTED: calcium/calmodulin-dependent protein kinase type II subunit gamma | B166: Camelus bactrianus | C166: XP_010961454.1 | D166: CAMK2G | E166: 64 kDa | M166: 0.3 | O166: 0.28 | P166: 0.36 | Q166: 0.23 | R166: 0.32 | T166: 0.19 | U166: 0.29 | V166: 0.36 | W166: 0.27 | X166: 0.37 | Y166: 0.37 | Z166: 0.40 | AA166: 0.31 | AB166: 0.26 | AC166: 0.22 | AD166: 0.30 | AE166: 0.22 | AF166: 0.22 | AG166: 0.17 | AH166: 0.32 | AI166: 0.33 | AJ166: 0.31 | AK166: 0.36 | AL166: 0.26
A167: PREDICTED: calmodulin-regulated spectrin-associated protein 3 isoform X5 | B167: Capra hircus | C167: XP_017906653 | D167: CAMSAP3 | E167: 135 kDa | M167: 0.9 | O167: 0.38 | P167: 1.07 | Q167: 1.01 | R167: 1.04 | T167: 0.41 | U167: 0.14 | V167: 0.64 | W167: 0.33 | X167: 0.33 | Y167: 2.19 | Z167: 1.25 | AA167: 0.50 | AB167: 0.15 | AC167: 0.16 | AD167: 1.27 | AE167: 0.51 | AF167: 2.39 | AG167: 1.59 | AH167: 0.97 | AI167: 1.30 | AJ167: 0.39 | AK167: 0.00 | AL167: 2.56
A168: cullin-associated NEDD8-dissociated protein 1 | B168: Ovis aries | C168: XP_004006537 | D168: CAND1 | E168: 136 kDa | K168: x | M168: 23.7 | O168: 21.35 | P168: 23.82 | Q168: 23.22 | R168: 26.39 | T168: 26.68 | U168: 22.56 | V168: 15.37 | W168: 20.78 | X168: 26.16 | Y168: 23.70 | Z168: 26.42 | AA168: 19.00 | AB168: 22.35 | AC168: 21.76 | AD168: 23.88 | AE168: 18.77 | AF168: 24.21 | AG168: 28.37 | AH168: 26.29 | AI168: 26.67 | AJ168: 26.71 | AK168: 26.85 | AL168: 25.42
A169: Adenylyl cyclase-associated protein | B169: Muntiacus reevesi | C169: KAB0379178 | D169: CAP | E169: 46 kDa | H169: x | K169: x | M169: 5.3 | O169: 4.80 | P169: 5.05 | Q169: 5.83 | R169: 5.46 | T169: 4.21 | U169: 5.40 | V169: 5.05 | W169: 4.52 | X169: 5.12 | Y169: 5.38 | Z169: 5.07 | AA169: 4.65 | AB169: 4.85 | AC169: 5.56 | AD169: 5.18 | AE169: 5.75 | AF169: 6.17 | AG169: 7.50 | AH169: 5.03 | AI169: 5.09 | AJ169: 5.73 | AK169: 5.18 | AL169: 6.27
A170: TPA: CAP1 protein-like | B170: Bos taurus | C170: DAA23999 | D170: CAP1 | E170: 51 kDa | H170: x | I170: x | K170: x | M170: 17.4 | O170: 14.88 | P170: 17.35 | Q170: 18.91 | R170: 18.51 | T170: 12.56 | U170: 15.79 | V170: 15.99 | W170: 15.18 | X170: 19.31 | Y170: 18.11 | Z170: 16.91 | AA170: 15.08 | AB170: 17.58 | AC170: 15.09 | AD170: 17.90 | AE170: 16.65 | AF170: 20.74 | AG170: 25.51 | AH170: 17.40 | AI170: 15.24 | AJ170: 18.98 | AK170: 18.42 | AL170: 22.52
A171: macrophage-capping protein isoform X1 | B171: Ovis aries | C171: XP_004005918 | D171: CAPG | E171: 39 kDa | H171: x | M171: 1.3 | O171: 1.55 | P171: 1.45 | Q171: 1.24 | R171: 1.15 | T171: 1.98 | U171: 1.31 | V171: 1.37 | W171: 1.55 | X171: 1.65 | Y171: 0.70 | Z171: 1.87 | AA171: 1.58 | AB171: 0.98 | AC171: 1.21 | AD171: 1.28 | AE171: 1.19 | AF171: 1.47 | AG171: 1.31 | AH171: 1.06 | AI171: 1.31 | AJ171: 1.42 | AK171: 1.08 | AL171: 0.90
A172: calpain-1 catalytic subunit | B172: Ovis aries | C172: NP_001120739 | D172: CAPN1 | E172: 82 kDa | I172: x | K172: x | M172: 11.0 | O172: 11.19 | P172: 11.93 | Q172: 11.14 | R172: 9.92 | T172: 9.69 | U172: 12.57 | V172: 12.06 | W172: 10.42 | X172: 12.33 | Y172: 11.50 | Z172: 13.89 | AA172: 10.02 | AB172: 11.51 | AC172: 9.42 | AD172: 12.13 | AE172: 10.38 | AF172: 11.24 | AG172: 12.18 | AH172: 8.63 | AI172: 8.93 | AJ172: 7.60 | AK172: 11.72 | AL172: 12.75
A173: calpain-2 catalytic subunit | B173: Ovis aries | C173: NP_001106288 | D173: CAPN2 | E173: 80 kDa | K173: x | M173: 9.3 | O173: 7.62 | P173: 9.50 | Q173: 9.45 | R173: 10.65 | T173: 3.95 | U173: 12.38 | V173: 7.33 | W173: 6.80 | X173: 11.55 | Y173: 11.05 | Z173: 9.57 | AA173: 5.81 | AB173: 8.02 | AC173: 10.33 | AD173: 11.49 | AE173: 9.96 | AF173: 7.38 | AG173: 9.50 | AH173: 8.42 | AI173: 10.40 | AJ173: 12.21 | AK173: 10.69 | AL173: 11.54
A174: calpain small subunit 1 | B174: Ovis aries | C174: XP_012045609 | D174: CAPNS1 | E174: 28 kDa | H174: x | K174: x | M174: 7.8 | O174: 7.81 | P174: 8.72 | Q174: 7.25 | R174: 7.36 | T174: 10.27 | U174: 5.63 | V174: 8.06 | W174: 7.28 | X174: 6.75 | Y174: 7.85 | Z174: 10.55 | AA174: 9.75 | AB174: 5.71 | AC174: 5.80 | AD174: 6.41 | AE174: 6.61 | AF174: 10.25 | AG174: 8.74 | AH174: 6.12 | AI174: 6.85 | AJ174: 9.35 | AK174: 5.99 | AL174: 8.50
A175: caprin-1 | B175: Ovis aries | C175: XP_011951593 | D175: CAPRIN1 | E175: 78 kDa | M175: 1.2 | O175: 0.86 | P175: 1.31 | Q175: 0.68 | R175: 1.87 | T175: 1.27 | U175: 0.80 | V175: 0.81 | W175: 0.57 | X175: 1.07 | Y175: 2.19 | Z175: 1.07 | AA175: 0.92 | AB175: 0.60 | AC175: 0.49 | AD175: 0.56 | AE175: 1.11 | AF175: 0.55 | AG175: 0.79 | AH175: 0.98 | AI175: 3.51 | AJ175: 1.32 | AK175: 1.26 | AL175: 2.26
A176: calcyphosin isoform X1 | B176: Ovis aries | C176: XP_027825599 | D176: CAPS | E176: 21 kDa | I176: x | K176: x | M176: 32.5 | O176: 32.12 | P176: 34.07 | Q176: 35.57 | R176: 28.43 | T176: 27.82 | U176: 24.53 | V176: 38.34 | W176: 37.79 | X176: 27.73 | Y176: 32.48 | Z176: 35.25 | AA176: 40.81 | AB176: 36.35 | AC176: 33.18 | AD176: 31.86 | AE176: 37.73 | AF176: 35.89 | AG176: 38.40 | AH176: 31.87 | AI176: 27.64 | AJ176: 28.81 | AK176: 27.51 | AL176: 26.32
A177: calcyphosin-like protein isoform X2 | B177: Ovis aries | C177: XP_011952455 | D177: CAPSL | E177: 24 kDa | M177: 0.2 | O177: 0.20 | P177: 0.22 | Q177: 0.29 | R177: 0.27 | T177: 0.04 | U177: 0.10 | V177: 0.36 | W177: 0.29 | X177: 0.22 | Y177: 0.50 | Z177: 0.04 | AA177: 0.12 | AB177: 0.15 | AC177: 0.28 | AD177: 0.21 | AE177: 0.26 | AF177: 0.55 | AG177: 0.31 | AH177: 0.29 | AI177: 0.26 | AJ177: 0.41 | AK177: 0.18 | AL177: 0.22
A178: F-actin-capping protein subunit alpha-1 | B178: Ovis aries | C178: XP_004002380 | D178: CAPZA1 | E178: 33 kDa | H178: x | I178: x | K178: x | M178: 7.7 | O178: 8.86 | P178: 7.04 | Q178: 8.33 | R178: 6.69 | T178: 9.06 | U178: 9.27 | V178: 9.64 | W178: 7.45 | X178: 7.89 | Y178: 6.59 | Z178: 6.19 | AA178: 7.50 | AB178: 9.41 | AC178: 7.96 | AD178: 8.81 | AE178: 7.06 | AF178: 8.24 | AG178: 8.52 | AH178: 6.27 | AI178: 7.22 | AJ178: 6.87 | AK178: 7.22 | AL178: 5.85
A179: F-actin-capping protein subunit alpha-2 | B179: Bos taurus | C179: NP_001013016 | D179: CAPZA2 | E179: 33 kDa | H179: x | I179: x | K179: x | M179: 10.5 | O179: 12.29 | P179: 9.00 | Q179: 11.24 | R179: 9.35 | T179: 13.40 | U179: 14.75 | V179: 11.32 | W179: 9.68 | X179: 7.83 | Y179: 10.29 | Z179: 8.40 | AA179: 9.47 | AB179: 12.75 | AC179: 12.79 | AD179: 11.99 | AE179: 9.75 | AF179: 9.55 | AG179: 10.64 | AH179: 8.19 | AI179: 11.58 | AJ179: 9.09 | AK179: 8.09 | AL179: 9.79
A180: calcium-regulated heat-stable protein 1 | B180: Ovis aries | C180: XP_004020810 | D180: CARHSP1 | E180: 16 kDa | H180: x | M180: 0.6 | O180: 0.81 | P180: 0.41 | Q180: 0.65 | R180: 0.39 | T180: 1.04 | U180: 0.43 | V180: 1.12 | W180: 0.65 | X180: 0.16 | Y180: 0.47 | Z180: 0.18 | AA180: 0.84 | AB180: 1.05 | AC180: 0.49 | AD180: 0.80 | AE180: 1.02 | AF180: 0.37 | AG180: 0.17 | AH180: 0.16 | AI180: 0.82 | AJ180: 0.00 | AK180: 0.36 | AL180: 0.61
A181: PREDICTED: F-actin-uncapping protein LRRC16A isoform X1 | B181: Bos indicus | C181: XP_019841453 | D181: CARMIL1 | E181: 157 kDa | K181: x | M181: 5.7 | O181: 5.10 | P181: 5.20 | Q181: 5.76 | R181: 6.55 | T181: 5.87 | U181: 5.94 | V181: 3.92 | W181: 4.66 | X181: 4.86 | Y181: 5.49 | Z181: 6.31 | AA181: 4.16 | AB181: 4.88 | AC181: 4.64 | AD181: 6.43 | AE181: 5.15 | AF181: 6.86 | AG181: 6.60 | AH181: 5.70 | AI181: 7.24 | AJ181: 6.61 | AK181: 6.27 | AL181: 6.93
A182: cysteine--tRNA ligase, cytoplasmic isoform X1 | B182: Ovis aries | C182: XP_027815144 | D182: CARS1 | E182: 94 kDa | K182: x | M182: 6.9 | O182: 6.07 | P182: 8.29 | Q182: 7.46 | R182: 5.70 | T182: 7.07 | U182: 5.68 | V182: 5.31 | W182: 6.20 | X182: 7.57 | Y182: 7.51 | Z182: 9.43 | AA182: 8.66 | AB182: 7.53 | AC182: 6.47 | AD182: 6.99 | AE182: 6.65 | AF182: 6.81 | AG182: 10.34 | AH182: 6.83 | AI182: 5.06 | AJ182: 3.58 | AK182: 5.22 | AL182: 7.83
A183: caspase 5 variant X1, partial | B183: Homo sapiens | C183: QOL70791 | D183: CASP5 | E183: 9 kDa | H183: x | M183: 0.2 | O183: 0.26 | P183: 0.34 | Q183: 0.00 | R183: 0.07 | T183: 0.39 | U183: 0.00 | V183: 0.00 | W183: 0.65 | X183: 0.66 | Y183: 0.00 | Z183: 0.71 | AA183: 0.00 | AB183: 0.00 | AC183: 0.00 | AD183: 0.00 | AE183: 0.00 | AF183: 0.00 | AG183: 0.00 | AH183: 0.33 | AI183: 0.00 | AJ183: 0.00 | AK183: 0.00 | AL183: 0.00
A184: caspase-7 isoform X4 | B184: Ovis aries | C184: XP_004020253 | D184: CASP7 | E184: 34 kDa | H184: x | K184: x | M184: 1.8 | O184: 2.05 | P184: 1.38 | Q184: 2.22 | R184: 1.58 | T184: 2.08 | U184: 3.22 | V184: 1.61 | W184: 1.31 | X184: 1.64 | Y184: 2.82 | Z184: 1.07 | AA184: 0.00 | AB184: 1.21 | AC184: 2.60 | AD184: 3.49 | AE184: 1.71 | AF184: 2.21 | AG184: 2.10 | AH184: 0.00 | AI184: 1.96 | AJ184: 1.88 | AK184: 2.88 | AL184: 1.20
A185: calpastatin | B185: Ovis aries | C185: NP_001009788 | D185: CAST | E185: 79 kDa | M185: 0.2 | O185: 0.11 | P185: 0.16 | Q185: 0.00 | R185: 0.45 | T185: 0.43 | U185: 0.00 | V185: 0.00 | W185: 0.00 | X185: 0.00 | Y185: 0.32 | Z185: 0.00 | AA185: 0.33 | AB185: 0.00 | AC185: 0.00 | AD185: 0.00 | AE185: 0.00 | AF185: 0.00 | AG185: 0.00 | AH185: 0.00 | AI185: 0.33 | AJ185: 0.00 | AK185: 0.72 | AL185: 1.22
A186: carbonyl reductase | B186: Ovis aries | C186: KAG5216361 | D186: CBR | E186: 276 kDa | K186: x | M186: 2.1 | O186: 2.17 | P186: 2.65 | Q186: 1.83 | R186: 1.57 | T186: 1.94 | U186: 1.20 | V186: 2.25 | W186: 3.27 | X186: 1.91 | Y186: 2.57 | Z186: 2.92 | AA186: 3.22 | AB186: 2.10 | AC186: 2.07 | AD186: 1.90 | AE186: 1.64 | AF186: 1.54 | AG186: 1.72 | AH186: 1.86 | AI186: 1.51 | AJ186: 1.45 | AK186: 1.46 | AL186: 1.55
A187: PREDICTED: cystathionine beta-synthase isoform X1 | B187: Capra hircus | C187: XP_005675704 | D187: CBS | E187: 64 kDa | M187: 1.7 | O187: 1.24 | P187: 1.73 | Q187: 1.70 | R187: 1.97 | T187: 0.74 | U187: 1.65 | V187: 1.27 | W187: 1.30 | X187: 1.51 | Y187: 1.64 | Z187: 1.84 | AA187: 1.91 | AB187: 1.33 | AC187: 1.21 | AD187: 1.75 | AE187: 2.24 | AF187: 1.57 | AG187: 2.08 | AH187: 2.00 | AI187: 1.39 | AJ187: 1.57 | AK187: 2.25 | AL187: 2.63
A188: coiled-coil and C2 domain-containing protein 1A | B188: Bos taurus | C188: NP_001092424 | D188: CC2D1A | E188: 104 kDa | M188: 0.2 | O188: 0.12 | P188: 0.21 | Q188: 0.17 | R188: 0.17 | T188: 0.23 | U188: 0.09 | V188: 0.10 | W188: 0.08 | X188: 0.10 | Y188: 0.19 | Z188: 0.38 | AA188: 0.15 | AB188: 0.12 | AC188: 0.17 | AD188: 0.20 | AE188: 0.16 | AF188: 0.23 | AG188: 0.13 | AH188: 0.13 | AI188: 0.28 | AJ188: 0.06 | AK188: 0.17 | AL188: 0.23
A189: cell cycle and apoptosis regulator protein 2 isoform X4 | B189: Ovis aries | C189: XP_027820136 | D189: CCAR2 | E189: 102 kDa | K189: x | M189: 3.0 | O189: 3.13 | P189: 4.79 | Q189: 1.38 | R189: 2.85 | T189: 3.37 | U189: 3.66 | V189: 2.41 | W189: 3.10 | X189: 4.11 | Y189: 5.79 | Z189: 6.57 | AA189: 2.67 | AB189: 1.51 | AC189: 2.27 | AD189: 0.64 | AE189: 1.53 | AF189: 1.10 | AG189: 1.22 | AH189: 2.11 | AI189: 5.04 | AJ189: 2.64 | AK189: 1.62 | AL189: 2.86
A190: copper chaperone for superoxide dismutase isoform X1 | B190: Ovis aries | C190: XP_004019755 | D190: CCS | E190: 29 kDa | H190: x | M190: 0.5 | O190: 0.56 | P190: 0.36 | Q190: 0.58 | R190: 0.45 | T190: 0.60 | U190: 0.37 | V190: 0.63 | W190: 0.64 | X190: 0.76 | Y190: 0.18 | Z190: 0.18 | AA190: 0.31 | AB190: 0.26 | AC190: 0.47 | AD190: 0.61 | AE190: 0.66 | AF190: 0.84 | AG190: 0.66 | AH190: 0.49 | AI190: 0.49 | AJ190: 0.19 | AK190: 0.45 | AL190: 0.62
A191: T-complex protein 1 subunit beta | B191: Ovis aries | C191: XP_004006518 | D191: CCT2 | E191: 57 kDa | K191: x | M191: 15.2 | O191: 14.57 | P191: 15.27 | Q191: 14.99 | R191: 15.98 | T191: 14.85 | U191: 16.00 | V191: 14.42 | W191: 13.03 | X191: 15.54 | Y191: 13.58 | Z191: 16.08 | AA191: 15.90 | AB191: 15.34 | AC191: 13.38 | AD191: 12.63 | AE191: 15.15 | AF191: 14.43 | AG191: 19.04 | AH191: 13.22 | AI191: 14.96 | AJ191: 16.40 | AK191: 17.46 | AL191: 17.84
A192: chaperonin containing TCP1 subunit 2 | B192: Homo sapiens | C192: CAG33352 | D192: CCT2 | E192: 57 kDa | K192: x | M192: 8.9 | O192: 9.49 | P192: 8.86 | Q192: 8.76 | R192: 8.55 | T192: 10.28 | U192: 10.47 | V192: 9.13 | W192: 8.08 | X192: 9.23 | Y192: 7.32 | Z192: 9.19 | AA192: 9.70 | AB192: 9.03 | AC192: 7.10 | AD192: 8.18 | AE192: 8.79 | AF192: 8.66 | AG192: 10.76 | AH192: 7.17 | AI192: 6.89 | AJ192: 9.04 | AK192: 10.15 | AL192: 9.48
A193: PREDICTED: T-complex protein 1 subunit gamma isoform X3 | B193: Bos mutus | C193: XP_005898794 | D193: CCT3 | E193: 56 kDa | K193: x | M193: 9.5 | O193: 8.50 | P193: 10.50 | Q193: 10.15 | R193: 8.97 | T193: 8.81 | U193: 8.51 | V193: 9.02 | W193: 7.63 | X193: 11.73 | Y193: 10.39 | Z193: 10.46 | AA193: 9.43 | AB193: 11.07 | AC193: 7.86 | AD193: 11.54 | AE193: 8.63 | AF193: 10.18 | AG193: 11.61 | AH193: 6.77 | AI193: 7.74 | AJ193: 8.37 | AK193: 11.03 | AL193: 10.93
A194: T-complex protein 1 subunit delta | B194: Ovis aries | C194: XP_014949814 | D194: CCT4 | E194: 58 kDa | I194: x | K194: x | M194: 23.4 | O194: 23.50 | P194: 20.99 | Q194: 27.29 | R194: 21.69 | T194: 22.17 | U194: 27.03 | V194: 23.91 | W194: 20.88 | X194: 21.14 | Y194: 19.74 | Z194: 22.48 | AA194: 20.62 | AB194: 23.07 | AC194: 23.46 | AD194: 27.83 | AE194: 26.67 | AF194: 30.09 | AG194: 32.62 | AH194: 21.93 | AI194: 19.40 | AJ194: 20.44 | AK194: 23.82 | AL194: 22.86
A195: chaperonin containing TCP1 subunit 5 | B195: Homo sapiens | C195: BAF83082 | D195: CCT5 | E195: 60 kDa | K195: x | M195: 3.8 | O195: 3.32 | P195: 3.67 | Q195: 4.17 | R195: 4.22 | T195: 2.95 | U195: 3.89 | V195: 3.67 | W195: 2.77 | X195: 3.10 | Y195: 3.28 | Z195: 4.23 | AA195: 4.06 | AB195: 3.17 | AC195: 2.16 | AD195: 4.56 | AE195: 4.92 | AF195: 4.07 | AG195: 6.15 | AH195: 5.59 | AI195: 3.59 | AJ195: 4.02 | AK195: 4.40 | AL195: 3.51
A196: T-complex protein 1 subunit zeta | B196: Ovis aries | C196: XP_004020986 | D196: CCT6A | E196: 58 kDa | K196: x | M196: =AVERAGE(O196:R196) -> 8.8 | O196: =AVERAGE(T196:W196) -> 9.13 | P196: =AVERAGE(X196:AA196) -> 8.74 | Q196: =AVERAGE(AB196:AG196) -> 9.18 | R196: =AVERAGE(AH196:AL196) -> 8.29 | T196: 8.02 | U196: 9.59 | V196: 9.83 | W196: 9.10 | X196: 10.20 | Y196: 8.52 | Z196: 8.99 | AA196: 7.25 | AB196: 9.71 | AC196: 7.59 | AD196: 8.22 | AE196: 9.23 | AF196: 9.63 | AG196: 10.72 | AH196: 6.03 | AI196: 7.91 | AJ196: 6.64 | AK196: 9.77 | AL196: 11.12
A197: T-complex protein 1 subunit theta isoform X1 | B197: Bos taurus | C197: XP_005201176 | D197: CCT8 | E197: 60 kDa | I197: x | K197: x | M197: 12.8 | O197: 12.86 | P197: 13.10 | Q197: 12.49 | R197: 12.92 | T197: 9.57 | U197: 13.79 | V197: 14.74 | W197: 13.33 | X197: 14.20 | Y197: 12.01 | Z197: 13.33 | AA197: 12.87 | AB197: 11.75 | AC197: 10.14 | AD197: 14.05 | AE197: 12.95 | AF197: 13.12 | AG197: 12.95 | AH197: 12.13 | AI197: 12.11 | AJ197: 13.32 | AK197: 14.15 | AL197: 12.91
A198: CD109 antigen | B198: Ovis aries | C198: XP_012037776 | D198: CD109 | E198: 162 kDa | G198: x | I198: x | K198: x | M198: 17.4 | O198: 15.52 | P198: 16.98 | Q198: 18.76 | R198: 18.42 | T198: 13.01 | U198: 14.59 | V198: 16.83 | W198: 17.64 | X198: 17.21 | Y198: 15.52 | Z198: 17.71 | AA198: 17.50 | AB198: 15.10 | AC198: 20.24 | AD198: 26.73 | AE198: 23.99 | AF198: 13.39 | AG198: 13.12 | AH198: 20.69 | AI198: 13.94 | AJ198: 22.34 | AK198: 15.66 | AL198: 19.47
A199: CD2-associated protein isoform X1 | B199: Ovis aries | C199: XP_014958226 | D199: CD2AP | E199: 71 kDa | M199: 0.9 | O199: 0.62 | P199: 1.02 | Q199: 0.66 | R199: 1.14 | T199: 0.27 | U199: 0.68 | V199: 0.86 | W199: 0.65 | X199: 1.53 | Y199: 0.84 | Z199: 1.06 | AA199: 0.66 | AB199: 0.30 | AC199: 0.76 | AD199: 0.10 | AE199: 1.14 | AF199: 0.37 | AG199: 1.29 | AH199: 1.84 | AI199: 1.41 | AJ199: 0.76 | AK199: 0.60 | AL199: 1.10
A200: CD9 antigen | B200: Ovis aries | C200: NP_001108236 | D200: CD9 | E200: 25 kDa | I200: x | K200: x | M200: 6.8 | O200: 5.84 | P200: 7.03 | Q200: 7.64 | R200: 6.67 | T200: 5.02 | U200: 4.38 | V200: 7.42 | W200: 6.53 | X200: 6.90 | Y200: 7.83 | Z200: 6.39 | AA200: 6.99 | AB200: 6.64 | AC200: 7.43 | AD200: 9.56 | AE200: 7.85 | AF200: 8.09 | AG200: 6.27 | AH200: 5.84 | AI200: 6.18 | AJ200: 8.69 | AK200: 7.19 | AL200: 5.43
... 1366 more rows
